Workbook

Sheet MENU INICIAL
E3: SECRETARIA DE ESTADO DA SAÚDE
H5: REVISÃO DO ADICIONAL DE INSALUBRIDADE

Sheet INSTRUÇÕES
B1: SECRETARIA DE ESTADO DA SAÚDE

Sheet CRONOGRAMA 2021 ESTATUTÁRIOS
B1: Secretaria de Estado da Saúde
B2: Cronograma do DPME sobre a Revisão do Adicional de Insalubridade (ESTATUTÁRIOS)
B4: FEVEREIRO Comunicado DPME 3 | F4: JUNHO/2021 Comunicado DPME 6 | L4: JULHO/2021 Comunicado DPME 7
B5: Período | C5: UNIDADE | D5: TOTAL | F5: Período | G5: UNIDADE | J5: TOTAL | L5: Período | M5: UNIDADE | N5: TOTAL
B6: 01/02 A 29/02/2020 - COMUNICADO DPME 3 - DOE 07/01/2020 | C6: HOSPITAL CÂNDIDO FONTOURA | D6: 551 | F6: 01/06 A 30/06/2021 - COMUNICADO DPME 6 - DOE 08/01/2020 - PUBLICADO NOVO CRONOGRAMA EM 03/10/2020 | G6: ADM. SUPERIOR E SEDE | I6: CRH | J6: 46 | L6: 01/07 A 31/07/2021 COMUNICADO DPME 7 - DOE 09/01/2020- PUBLICADO NOVO CRONOGRAMA EM 03/10/2020 | M6: COORDENADORIA DE REGIÕES DE SAÚDE | N6: 13
I7: CPS | J7: 2 | M7: DRS I - GRANDE SÃO PAULO | N7: 1599
C8: PROCESSOS ENVIADOS EM 28/02/2020 PARA DPME | I8: CAF | J8: 1 | M8: DRS II ARAÇATUBA | N8: 111
I9: CGA | J9: 53 | M9: DRS III ARARAQUARA | N9: 60
I10: CCTIES | J10: 4 | M10: DRS IV BAIXADA SANTISTA | N10: 112
I11: CGCSS | J11: 10 | M11: DRS V BARRETOS | N11: 66
I12: GAB.SECRETÁRIO | J12: 22 | M12: DRS VI BAURU | N12: 283
C13: TOTAL | D13: 551 | G13: INSTITUTO BUTANTÃ | J13: 485 | M13: DRS VII CAMPINAS | N13: 213
G14: INSTITUTO DE SAÚDE | J14: 24 | M14: DRS VIII - FRANCA | N14: 78
B15: AGOSTO/2021 Comunicado DPME 8 | G15: COORD.CONTROLE DOENÇAS | I15: GAB.COORDENADOR | J15: 14 | M15: DRS IX - MARILIA | N15: 162
B16: Período | C16: UNIDADE | D16: TOTAL | I16: GRUPO GER ADM | J16: 113 | M16: DRS X - PIRACICABA | N16: 83
B17: 01/08 a 31/08/2021 COMUNICADO DPME 8 - DOE 09/01/2020 - PUBLICADO NOVO CRONOGRAMA EM 03/10/2020 | C17: CAIS CLEMENTE FERREIRA | D17: 566 | G17: CRT AIDS | J17: 300 | M17: DRS XI - PRESIDENTE PRUDENTE | N17: 89
C18: CAIS SANTA RITA | D18: 481 | G18: CENTRO DE VIGILÂNCIA EPIDEMIOLÓGICA | J18: 348 | M18: DRS XII - REGISTRO | N18: 86
C19: CEDEME | D19: 299 | G19: CENTRO DE VIGILÂNCIA SANITÁRIA | J19: 516 | M19: DRS XIII - RIBEIRÃO PRETO | N19: 137
C20: CENTRO PIONEIRO | D20: 129 | G20: INSTITUTO ADOLFO LUTZ | J20: 915 | M20: DRS XIV - SÃO JOÃO DA BOA VISTA | N20: 118
C21: CENTRO DE REAB. CASA BRANCA | D21: 548 | G21: INSTITUTO PASTEUR | J21: 72 | M21: DRS XV - SÃO JOSÉ DO RIO PRETO | N21: 227
C22: CENTRO DE REF. SAÚDE DA MULHER | D22: 1039 | G22: HC RIBEIRÃO PRETO | J22: 128 | M22: DRS XVI - SOROCABA | N22: 136
G23: HOSPITAL BOTUCATU | J23: 60 | M23: DRS XVII - TAUBATÉ | N23: 106
C24: TOTAL | D24: =SUM(D17:D22) -> 3062 | G24: SUCEN | J24: 205 | M24: TOTAL | N24: =SUM(N6:N23) -> 3679
G25: TOTAL | J25: =SUM(J6:J24) -> 3318
B26: SETEMBRO/2021 Comunicado DPME 10
B27: Período | C27: UNIDADE | D27: TOTAL | F27: OUTUBRO/2021 Comunicado DPME 11 | L27: NOVEMBRO/2021 Comunicado DPME 12
B28: 01/09 A 30/09/2021 - COMUNICADO DPME 10 - DOE 11/01/2020 - PUBLICADO NOVO CRONOGRAMA EM 03/10/2020 | C28: CRATOD | D28: 128 | F28: Período | G28: UNIDADE | J28: TOTAL | L28: Período | M28: UNIDADE | N28: TOTAL
C29: CENTRO DE REF. DO IDOSO | D29: 185 | F29: 01/10 A 30/10/2021 - COMUNICADO DPME 11 - DOE 14/01/2020 - PUBLICANO NOVO CRONOGRAMA EM 03/10/2020 | G29: CONJUNTO HOSPITLAR DO MANDAQUI | J29: 1625 | L29: 01/11 A 30/11/2021 - COMUNICADO 12 - DOE 15/01/2020 - PUBLICADO NOVO CRONOGRAMA EM 03/10/2020 | M29: HOSPITAL DE VILA NOVA CACHOEIRINHA | N29: 1035
C30: COMPLEXO HOSPITALAR DO JUQEURY | D30: 881 | G30: CONJUNTO HOSPITALAR DE SOROCABA | J30: 1300 | M30: HOSPITAL PRESIDENTE PRUDENTE | N30: 331
C31: COMPLEXO HOSPITALAR PADRE BENTO | D31: 882 | M31: HOSPITAL FRANCISCO RIBEIRO ARANTES | N31: 241
M32: HOSPITAL ARNALDO PEZZUTI | N32: 735 | R32: QUANTITATIVO DE REVISÕES 2020
M33: GRAU | N33: 149 | R33: meses | S33: Comunicados DPME | T33: TOTAL
M34: GABINETE COORDENADOR CSS | N34: 6 | R34: FEVEREIRO | S34: 3 | T34: =D13 -> 551
C35: TOTAL | D35: =SUM(D28:D31) -> 2076 | M35: DGAC | N35: 426 | R35: JULHO | S35: 6 | T35: =N131 -> 3318
G36: TOTAL | J36: =SUM(J29:J34) -> 2925 | M36: TOTAL | N36: =SUM(N29:N35) -> 2923 | R36: AGOSTO | S36: 7 | T36: =N24 -> 3679
B38: DEZEMBRO/2021 - Comunicado DPME 15/2020 | F38: SETEMBRO/2021 - Comunicado DPME 16/2020 | L38: OUTUBRO/2021 - Comunicado DPME 17/2020 | R38: OUTUBRO | S38: 10 | T38: =D35 -> 2076
B39: Período | C39: UNIDADE | D39: TOTAL | F39: Período | G39: UNIDADE | J39: TOTAL | L39: Período | M39: UNIDADE | N39: TOTAL | R39: NOVEMBRO | S39: 11 | T39: =O48 -> 0
B40: 01/12 a 31/12/2021 - COMUNICADO DPME 15 - DOE DE 16/01/2020 - PUBLICADO EM 03/10/2020 | C40: HOSPITAL GERAL DA VILA PENTEADO | D40: 954 | F40: 01/09 a 30/09/2021 - COMUNICADO DPME 16 - DOE 17/01/2020 - PUBLICADO EM 03/10/2020 | G40: HOSPITAL DE FERRAZ DE VASCONCELOS | J40: 1026 | L40: 01/10 a 31/10/2021 - COMUNICADO DPME 17 - DOE 18/01/2020 - PUBLICADO EM 03/10/2020 | M40: HOSPITAL GUILHERME ALVARO | N40: 19
C41: HOSPITAL GERAL DE SÃO MATEUS | D41: 1066 | G41: HOSPITAL LEOPOLDO BEVILACQUA | H41: HOSPITAL LEOPOLDO BEVILACQUA | I41: HOSPITAL LEOPOLDO BEVILACQUA | J41: 46 | M41: HOSPITAL PSIQUIATRICO CANTIDIO MOURA | N41: 316
C42: HOSPITAL GERAL DE TAIPAS | D42: 872 | G42: HOSPITAL GERAL DE GUAIANAZES | H42: HOSPITAL GERAL DE GUAIANAZES | I42: HOSPITAL GERAL DE GUAIANAZES | J42: 770 | M42: HOSPITAL PSIQUIATRICO PINEL | N42: 380
C43: HOSPITAL MATERNIDADE INTERLAGOS | D43: 532 | G43: HOSPITAL NESTOR GOULART REIS | H43: HOSPITAL NESTOU GOULART REIS | I43: HOSPITAL NESTOU GOULART REIS | J43: 183 | M43: HOSPITAL REGIONAL VIVALDO MARTINS SIMÕES | N43: 910
G44: HOSPITAL DAS CLINICAS LUZIA P MELO | H44: HOSPITAL DAS CLINICAS LUZIA P MELO | I44: HOSPITAL DAS CLINICAS LUZIA P MELO | J44: 27 | M44: HOSPITAL REGIONAL DE ASSIS | N44: 748
G45: HOSPITAL DA AGUA FUNDA | H45: HOSPITAL DA AGUA FUNDA | I45: HOSPITAL DA AGUA FUNDA | J45: 289 | M45: HOSPITAL REGIONAL SUL | N45: 1110
G46: HOSPITAL GERAL MARTIM GUALDA | J46: 349
G47: HOSPITAL GUILHERME ALVARO | J47: 1059
C48: TOTAL | D48: =SUM(D40:D43) -> 3424 | G48: TOTAL | J48: =SUM(J40:J47) -> 3749
M49: TOTAL | N49: =SUM(N40:N48) -> 3483
B50: NOVEMBRO/2021 - Comunicado DPME 20/2020
B51: Período | C51: UNIDADE | D51: TOTAL
B52: 01/11 A 31/11/2021 - COMUNICADO DPME 20 - DOE 23/01/2020 - PUBLICADO EM 03/10/2020 | C52: HOSPITAL SANTA TEREZA DE RIBEIRÃO | D52: 405
C53: INSTITUTO LAURO DE SOUZA LIMA | D53: 277 | H53: QUANTITATIVO DE REVISÕES 2021 (ESTATUTÁRIOS)
C54: INSTITUTO CLEMENTE FERREIRA | D54: 90
C55: INSTITUTO DANTE PAZZANESE | D55: 1046 | H55: MESES* | I55: COMUNICADO DPME Nº | L55: TOTAL
C56: INSTITUTO DE INFECT.EMILIO RIBAS | D56: 1215 | H56: 2020-02-01 | I56: 3 - DOE 07/01/2020 | L56: =D13 -> 551
H57: 2021-06-01 | I57: 6 - DOE 08/01/2020 | L57: =J25 -> 3318
H58: 2021-07-01 | I58: 7 - DOE 09/01/2020 | L58: =N24 -> 3679
H59: 2021-08-01 | I59: 8 - DOE 10/01/2020 | L59: =D24 -> 3062
C60: TOTAL | D60: =SUM(D52:D57) -> 3033 | H60: 2021-09-01 | I60: 10 - DOE 11/01/2020 | L60: =D35 -> 2076
H61: 2021-10-01 | I61: 11 - DOE 14/01/2020 | L61: =J36 -> 2925
H62: 2021-11-01 | I62: 12 - DOE 15/01/2020 | L62: =N36 -> 2923
H63: 2021-12-01 | I63: 15 - DOE 23/01/2020 | L63: =D48 -> 3424
H64: 2021-09-01 | I64: 16 - DOE 17/01/2020 | L64: =J48 -> 3749
H65: 2021-10-01 | I65: 17- DOE 18/01/2020 | L65: =N49 -> 3483
H66: 2021-11-01 | I66: 20 - DOE 23/01/2020 | L66: =D60 -> 3033
H67: TOTAL GERAL | L67: =SUM(L56:L66) -> 32223
H69: *Novo Cronograma da Revisão de Insalubridade publicado no Doe de 03/10/2020 - pág. 06
J122: JULHO Comunicado DPME 6
J123: Período | K123: UNIDADE | N123: TOTAL
J124: 01/07 A 31/07/2020 | K124: ADMINISTRAÇÃO SUPERIOR E SEDE | N124: 134
K125: INSTITUTO BUTANTÃ | N125: 513
K126: INSTITUTO DE SAÚDE
K127: COORDENADORIA DE CONTROLE DE DOENÇAS | N127: 2278
K128: HC RIBEIRÃO PRETO | N128: 128
K129: HOSPITAL BOTUCATU | N129: 60
K130: SUCEN | N130: 205
K131: TOTAL | N131: =SUM(N124:N130) -> 3318

Sheet CRONOGRAMA 2021 CLT
B1: Secretaria de Estado da Saúde
B2: Cronograma do DPME sobre a Revisão do Adicional de Insalubridade (CLT)
B4: FEVEREIRO | F4: 2021-06-01 | L4: 2021-07-01
B5: Período | C5: UNIDADE | D5: TOTAL | F5: Período | G5: UNIDADE | J5: TOTAL | L5: Período | M5: UNIDADE | N5: TOTAL
B6: 01/02 A 29/02/2020 | C6: HOSPITAL CÂNDIDO FONTOURA | D6: 47 | F6: 01/06 A 30/06/2021 | G6: ADM. SUPERIOR E SEDE | I6: CRH | J6: 12 | L6: 01/07 A 31/07/20201 | M6: COORDENADORIA DE REGIÕES DE SAÚDE | N6: 5
I7: CPS | J7: 2 | M7: DRS I - GRANDE SÃO PAULO | N7: 1448
C8: ENVIADO EM MARÇO/2020 PARA CRH | I8: CGA | J8: 30 | M8: DRS II ARAÇATUBA | N8: 33
I9: CGCSS | J9: 2 | M9: DRS III ARARAQUARA | N9: 53
I10: GAB.SECRETÁRIO | J10: 14 | M10: DRS IV BAIXADA SANTISTA | N10: 67
G11: INSTITUTO BUTANTÃ | J11: 56 | M11: DRS V BARRETOS | N11: 48
G12: INSTITUTO DE SAÚDE | J12: 4 | M12: DRS VI BAURU | N12: 45
G13: COORD.CONTROLE DOENÇAS | I13: GAB.COORDENADOR | J13: 9 | M13: DRS VII - CAMPINAS | N13: 94
I14: GRUPO GER ADM | J14: 124 | M14: DRS VIII - FRANCA | N14: 58
C15: TOTAL | D15: =SUM(D6:D14) -> 47 | G15: CRT AIDS | J15: 56 | M15: DRS IX - MARILIA | N15: 81
G16: CENTRO DE VIGILÂNCIA EPIDEMIOLÓGICA | J16: 72 | M16: DRS X - PIRACICABA | N16: 20
G17: CENTRO DE VIGILÂNCIA SANITÁRIA | J17: 244 | M17: DRS XI - PRESIDENTE PRUDENTE | N17: 15
G18: INSTITUTO ADOLFO LUTZ | J18: 136 | M18: DRS XII - REGISTRO | N18: 56
G19: INSTITUTO PASTEUR | J19: 3 | M19: DRS XIII - RIBEIRÃO PRETO | N19: 107
M20: DRS XIV - SÃO JOÃO DA BOA VISTA | N20: 41
G21: TOTAL | J21: =SUM(J6:J20) -> 764 | M21: DRS XV - SÃO JOSÉ DO RIO PRETO | N21: 110
M22: DRS XVI - SOROCABA | N22: 115
B23: 2021-08-01 | F23: 2021-09-01 | M23: DRS XVII - TAUBATÉ | N23: 58
B24: Período | C24: UNIDADE | D24: TOTAL | F24: Período | G24: UNIDADE | J24: TOTAL | M24: TOTAL | N24: =SUM(N6:N23) -> 2454
B25: 01/08 a 30/08/2021 | C25: CAIS CLEMENTE FERREIRA | D25: 15 | F25: 01/09 A 30/09/2021 | G25: CRATOD | J25: 17
C26: CAIS SANTA RITA | D26: 1 | G26: COMPLEXO HOSPITALAR DO JUQUERY | J26: 176 | L26: 2021-10-01
C27: CENTRO PIONEIRO | D27: 13 | G27: COMPLEXO HOSPITALAR PADRE BENTO | J27: 208 | L27: Período | M27: UNIDADE | N27: TOTAL
C28: CENTRO DE REAB. CASA BRANCA | D28: 17 | G28: UNID.INT.SAUDE DR.O.B.FARIA MIRANDOPOLIS | J28: 5 | L28: 01/10 A 31/10/2021 | M28: CONJUNTO HOSPITLAR DO MANDAQUI | N28: 156
C29: CENTRO DE REF. SAÚDE DA MULHER | D29: 47 | G29: IPGG | J29: 26 | M29: CONJUNTO HOSPITALAR DE SOROCABA | N29: 52
G30: HOSPITAL DE FERRAZ DE VASCONCELOS | J30: 180 | M30: HOSPITAL PSIQUIATRICO CANTIDIO MOURA | N30: 25
G31: HOSPITAL LEOPOLDO BEVILACQUA | J31: 16 | M31: HOSPITAL PSIQUIATRICO PINEL | N31: 26
C32: TOTAL | D32: =SUM(D25:D29) -> 93 | G32: HOSPITAL GERAL DE GUAIANAZES | H32: HOSPITAL GERAL DE GUAIANAZES | I32: HOSPITAL GERAL DE GUAIANAZES | J32: 34 | M32: HOSPITAL REGIONAL VIVALDO MARTINS SIMÕES | N32: 163
G33: HOSPITAL DAS CLINICAS LUZIA P MELO | J33: 16 | M33: HOSPITAL REGIONAL DE ASSIS | N33: 18
G34: HOSPITAL DA AGUA FUNDA | J34: 41 | M34: HOSPITAL REGIONAL SUL | N34: 234
G35: HOSPITAL GERAL MARTIM GUALDA | J35: 13
G36: HOSPITAL GUILHERME ALVARO | J36: 117
G37: TOTAL | J37: =SUM(J11:J36) -> 2317
B40: 2021-11-01
B41: Período | C41: UNIDADE | F41: TOTAL
B42: 01/11 A 30/11/2021 | C42: HOSPITAL DE VILA NOVA CACHOEIRINHA | F42: 62
C43: HOSPITAL PRESIDENTE PRUDENTE | F43: 8
C44: HOSPITAL FRANCISCO RIBEIRO ARANTES | F44: 52
C45: HOSPITAL ARNALDO PEZZUTI | F45: 178 | M45: TOTAL | N45: =SUM(N28:N44) -> 674
C46: GRAU | F46: 4
C47: GABINETE COORDENADOR CSS | F47: 11
C48: HOSPITAL SANTA TEREZA DE RIBEIRÃO | F48: 25 | L48: 2021-12-01
C49: INSTITUTO LAURO DE SOUZA LIMA | F49: 1 | L49: Período | M49: UNIDADE | N49: TOTAL
C50: INSTITUTO CLEMENTE FERREIRA | F50: 12 | L50: 01/12a 31/12/2021 | M50: HOSPITAL GERAL DA VILA PENTEADO | N50: 32
C51: INSTITUTO DANTE PAZZANESE | F51: 16 | M51: HOSPITAL GERAL DE SÃO MATEUS | N51: 105
C52: INSTITUTO DE INFECT.EMILIO RIBAS | F52: 126 | M52: HOSPITAL GERAL DE TAIPAS | N52: 49
C53: DGAC | F53: 202 | M53: HOSPITAL MATERNIDADE INTERLAGOS | N53: 36
M58: TOTAL | N58: =SUM(N50:N53) -> 222
C59: TOTAL | F59: =SUM(F42:F57) -> 697
L62: QUANTITATIVO DE REVISÕES 2021 (CLT)
L63: meses | N63: TOTAL
L64: JUNHO | M64: SERVIDORES CLT | N64: =J21 -> 764
L65: JULHO | N65: =N24 -> 2454
L66: AGOSTO | N66: =D32 -> 93
L67: SETEMBRO | N67: =J37 -> 2317
L68: OUTUBRO | N68: =N45 -> 674
L69: NOVEMBRO | N69: =F59 -> 697
L70: DEZEMBRO | N70: =N58 -> 222
M80: TOTAL GERAL | N80: =SUM(N64:N76) -> 7221

Sheet RELAÇÃO DE SERVIDORES CLT
A1: RELAÇÃO DE SERVIDORES REGIDOS PELA C.L.T. (Consolidação das Leis Trabalhistas)
A4: CATEG | B4: CODIGO | C4: QTD | D4: UO_CODIGO_FK | E4: UO_DESCR_FK | F4: UD_ CODIGO_FK | G4: UD_DESCR_FK | H4: UA_ CODIGO_ FK | I4: NOME | J4: CARGO | K4: UA_DESCR_FK | XFC4: PROCESSOS ENVIADOS
A5: N | B5: 010009 | C5: 0 | D5: 1 | E5: ADMINISTRACAO SUPERIOR SECRETARIA SEDE | F5: 2 | G5: COORDENADORIA GERAL DE ADMINISTRACAO CGA | H5: 4703 | I5: ALFREDO AMERICO BORGES SOUZA | J5: 07847-ENGENHEIRO VI | K5: COORD.GERAL ADMINISTRACAO CGA
A6: N | B6: 012007 | C6: 20 | D6: 1 | E6: ADMINISTRACAO SUPERIOR SECRETARIA SEDE | F6: 2 | G6: COORDENADORIA GERAL DE ADMINISTRACAO CGA | H6: 4703 | I6: ALFREDO AMERICO BORGES SOUZA | J6: 07847-ENGENHEIRO VI | K6: COORD.GERAL ADMINISTRACAO CGA
A7: N | B7: 010009 | C7: 0 | D7: 1 | E7: ADMINISTRACAO SUPERIOR SECRETARIA SEDE | F7: 2 | G7: COORDENADORIA GERAL DE ADMINISTRACAO CGA | H7: 4703 | I7: SONIA MARIA PEREIRA ANTONIO | J7: 04349-OFICIAL ADMINISTRATIVO | K7: COORD.GERAL ADMINISTRACAO CGA
A8: N | B8: 012007 | C8: 20 | D8: 1 | E8: ADMINISTRACAO SUPERIOR SECRETARIA SEDE | F8: 2 | G8: COORDENADORIA GERAL DE ADMINISTRACAO CGA | H8: 4703 | I8: SONIA MARIA PEREIRA ANTONIO | J8: 04349-OFICIAL ADMINISTRATIVO | K8: COORD.GERAL ADMINISTRACAO CGA
A9: N | B9: 010009 | C9: 0 | D9: 1 | E9: ADMINISTRACAO SUPERIOR SECRETARIA SEDE | F9: 1 | G9: GABINETE DO SECRETARIO E ASSESSORIAS | H9: 4655 | I9: SILVIA HARUE MIYAZAKI SIQUEIRA | J9: 04038-ENFERMEIRO | K9: GABIN.SECRETARIO ASSESSORIAS
A10: N | B10: 012007 | C10: 40 | D10: 1 | E10: ADMINISTRACAO SUPERIOR SECRETARIA SEDE | F10: 1 | G10: GABINETE DO SECRETARIO E ASSESSORIAS | H10: 4655 | I10: SILVIA HARUE MIYAZAKI SIQUEIRA | J10: 04038-ENFERMEIRO | K10: GABIN.SECRETARIO ASSESSORIAS
A11: N | B11: 010009 | C11: 0 | D11: 1 | E11: ADMINISTRACAO SUPERIOR SECRETARIA SEDE | F11: 2 | G11: COORDENADORIA GERAL DE ADMINISTRACAO CGA | H11: 4747 | I11: DARCIO MIGUEL MACHADO | J11: 03912-AUXILIAR SERV.GERAIS | K11: CENTRO DE TRANSPORTES
A12: N | B12: 012007 | C12: 40 | D12: 1 | E12: ADMINISTRACAO SUPERIOR SECRETARIA SEDE | F12: 2 | G12: COORDENADORIA GERAL DE ADMINISTRACAO CGA | H12: 4747 | I12: DARCIO MIGUEL MACHADO | J12: 03912-AUXILIAR SERV.GERAIS | K12: CENTRO DE TRANSPORTES
A13: N | B13: 012007 | C13: 40 | D13: 1 | E13: ADMINISTRACAO SUPERIOR SECRETARIA SEDE | F13: 5 | G13: COORDENADORIA DE RECURSOS HUMANOS-CRH | H13: 67442 | I13: MAURO TAVARES DA FONSECA | J13: 03912-AUXILIAR SERV.GERAIS | K13: NUCL.FREQU.EXPEDIENTE PESSOAL
A14: N | B14: 010009 | C14: 0 | D14: 1 | E14: ADMINISTRACAO SUPERIOR SECRETARIA SEDE | F14: 5 | G14: COORDENADORIA DE RECURSOS HUMANOS-CRH | H14: 67442 | I14: APARECIDO FRANCO DE FREITAS | J14: 04349-OFICIAL ADMINISTRATIVO | K14: NUCL.FREQU.EXPEDIENTE PESSOAL
A15: N | B15: 012007 | C15: 20 | D15: 1 | E15: ADMINISTRACAO SUPERIOR SECRETARIA SEDE | F15: 5 | G15: COORDENADORIA DE RECURSOS HUMANOS-CRH | H15: 67442 | I15: APARECIDO FRANCO DE FREITAS | J15: 04349-OFICIAL ADMINISTRATIVO | K15: NUCL.FREQU.EXPEDIENTE PESSOAL
A16: N | B16: 010009 | C16: 0 | D16: 1 | E16: ADMINISTRACAO SUPERIOR SECRETARIA SEDE | F16: 5 | G16: COORDENADORIA DE RECURSOS HUMANOS-CRH | H16: 67442 | I16: DEJANIRA DA SILVA | J16: 04349-OFICIAL ADMINISTRATIVO | K16: NUCL.FREQU.EXPEDIENTE PESSOAL
A17: N | B17: 012007 | C17: 20 | D17: 1 | E17: ADMINISTRACAO SUPERIOR SECRETARIA SEDE | F17: 5 | G17: COORDENADORIA DE RECURSOS HUMANOS-CRH | H17: 67442 | I17: DEJANIRA DA SILVA | J17: 04349-OFICIAL ADMINISTRATIVO | K17: NUCL.FREQU.EXPEDIENTE PESSOAL
A18: N | B18: 012007 | C18: 40 | D18: 1 | E18: ADMINISTRACAO SUPERIOR SECRETARIA SEDE | F18: 2 | G18: COORDENADORIA GERAL DE ADMINISTRACAO CGA | H18: 4747 | I18: FRANCISCO CARNEIRO ALTINO | J18: 03912-AUXILIAR SERV.GERAIS | K18: CENTRO DE TRANSPORTES
A19: N | B19: 012007 | C19: 40 | D19: 1 | E19: ADMINISTRACAO SUPERIOR SECRETARIA SEDE | F19: 2 | G19: COORDENADORIA GERAL DE ADMINISTRACAO CGA | H19: 4747 | I19: WILSON B ALBUQUERQUE FILHO | J19: 03912-AUXILIAR SERV.GERAIS | K19: CENTRO DE TRANSPORTES
A20: N | B20: 010009 | C20: 0 | D20: 1 | E20: ADMINISTRACAO SUPERIOR SECRETARIA SEDE | F20: 2 | G20: COORDENADORIA GERAL DE ADMINISTRACAO CGA | H20: 4747 | I20: RUBERVAL DE OLIVEIRA XAVIER | J20: 03924-OFICIAL OPERACIONAL | K20: CENTRO DE TRANSPORTES
A21: N | B21: 012007 | C21: 40 | D21: 1 | E21: ADMINISTRACAO SUPERIOR SECRETARIA SEDE | F21: 2 | G21: COORDENADORIA GERAL DE ADMINISTRACAO CGA | H21: 4747 | I21: RUBERVAL DE OLIVEIRA XAVIER | J21: 03924-OFICIAL OPERACIONAL | K21: CENTRO DE TRANSPORTES
A22: N | B22: 010009 | C22: 0 | D22: 1 | E22: ADMINISTRACAO SUPERIOR SECRETARIA SEDE | F22: 2 | G22: COORDENADORIA GERAL DE ADMINISTRACAO CGA | H22: 4747 | I22: NELSO JOSE CAVALCA | J22: 03924-OFICIAL OPERACIONAL | K22: CENTRO DE TRANSPORTES
A23: N | B23: 012007 | C23: 20 | D23: 1 | E23: ADMINISTRACAO SUPERIOR SECRETARIA SEDE | F23: 2 | G23: COORDENADORIA GERAL DE ADMINISTRACAO CGA | H23: 4747 | I23: NELSO JOSE CAVALCA | J23: 03924-OFICIAL OPERACIONAL | K23: CENTRO DE TRANSPORTES
A24: N | B24: 010009 | C24: 0 | D24: 1 | E24: ADMINISTRACAO SUPERIOR SECRETARIA SEDE | F24: 1 | G24: GABINETE DO SECRETARIO E ASSESSORIAS | H24: 4655 | I24: ALI ABDUL RAHMAN AYOUB | J24: 05526-MEDICO III | K24: GABIN.SECRETARIO ASSESSORIAS
A25: N | B25: 012007 | C25: 40 | D25: 1 | E25: ADMINISTRACAO SUPERIOR SECRETARIA SEDE | F25: 1 | G25: GABINETE DO SECRETARIO E ASSESSORIAS | H25: 4655 | I25: ALI ABDUL RAHMAN AYOUB | J25: 05526-MEDICO III | K25: GABIN.SECRETARIO ASSESSORIAS
A26: N | B26: 010009 | C26: 0 | D26: 1 | E26: ADMINISTRACAO SUPERIOR SECRETARIA SEDE | F26: 2 | G26: COORDENADORIA GERAL DE ADMINISTRACAO CGA | H26: 4703 | I26: KYOKO OSADA NISHIMURA | J26: 07853-ARQUITETO VI | K26: COORD.GERAL ADMINISTRACAO CGA
A27: N | B27: 012007 | C27: 20 | D27: 1 | E27: ADMINISTRACAO SUPERIOR SECRETARIA SEDE | F27: 2 | G27: COORDENADORIA GERAL DE ADMINISTRACAO CGA | H27: 4703 | I27: KYOKO OSADA NISHIMURA | J27: 07853-ARQUITETO VI | K27: COORD.GERAL ADMINISTRACAO CGA
A28: N | B28: 008431 | C28: 20 | D28: 1 | E28: ADMINISTRACAO SUPERIOR SECRETARIA SEDE | F28: 2 | G28: COORDENADORIA GERAL DE ADMINISTRACAO CGA | H28: 4703 | I28: MARIA CECILIA PEREIRA P REGO | J28: 07853-ARQUITETO VI | K28: COORD.GERAL ADMINISTRACAO CGA
A29: N | B29: 010009 | C29: 0 | D29: 1 | E29: ADMINISTRACAO SUPERIOR SECRETARIA SEDE | F29: 2 | G29: COORDENADORIA GERAL DE ADMINISTRACAO CGA | H29: 4703 | I29: MARIA CECILIA PEREIRA P REGO | J29: 07853-ARQUITETO VI | K29: COORD.GERAL ADMINISTRACAO CGA
A30: N | B30: 010009 | C30: 0 | D30: 1 | E30: ADMINISTRACAO SUPERIOR SECRETARIA SEDE | F30: 1 | G30: GABINETE DO SECRETARIO E ASSESSORIAS | H30: 4655 | I30: WALDETE ARJONA DAL BON | J30: 07853-ARQUITETO VI | K30: GABIN.SECRETARIO ASSESSORIAS
A31: N | B31: 012007 | C31: 20 | D31: 1 | E31: ADMINISTRACAO SUPERIOR SECRETARIA SEDE | F31: 1 | G31: GABINETE DO SECRETARIO E ASSESSORIAS | H31: 4655 | I31: WALDETE ARJONA DAL BON | J31: 07853-ARQUITETO VI | K31: GABIN.SECRETARIO ASSESSORIAS
A32: N | B32: 010009 | C32: 0 | D32: 1 | E32: ADMINISTRACAO SUPERIOR SECRETARIA SEDE | F32: 1 | G32: GABINETE DO SECRETARIO E ASSESSORIAS | H32: 4655 | I32: ALTAMIRA GONCALVES DA SILVA | J32: 03912-AUXILIAR SERV.GERAIS | K32: GABIN.SECRETARIO ASSESSORIAS
A33: N | B33: 012007 | C33: 40 | D33: 1 | E33: ADMINISTRACAO SUPERIOR SECRETARIA SEDE | F33: 1 | G33: GABINETE DO SECRETARIO E ASSESSORIAS | H33: 4655 | I33: ALTAMIRA GONCALVES DA SILVA | J33: 03912-AUXILIAR SERV.GERAIS | K33: GABIN.SECRETARIO ASSESSORIAS
A34: N | B34: 010009 | C34: 0 | D34: 1 | E34: ADMINISTRACAO SUPERIOR SECRETARIA SEDE | F34: 1 | G34: GABINETE DO SECRETARIO E ASSESSORIAS | H34: 4655 | I34: CRISTINA MARIA DE FATIMA GUAST | J34: 05526-MEDICO III | K34: GABIN.SECRETARIO ASSESSORIAS
A35: N | B35: 012007 | C35: 40 | D35: 1 | E35: ADMINISTRACAO SUPERIOR SECRETARIA SEDE | F35: 1 | G35: GABINETE DO SECRETARIO E ASSESSORIAS | H35: 4655 | I35: CRISTINA MARIA DE FATIMA GUAST | J35: 05526-MEDICO III | K35: GABIN.SECRETARIO ASSESSORIAS
A36: N | B36: 012007 | C36: 20 | D36: 1 | E36: ADMINISTRACAO SUPERIOR SECRETARIA SEDE | F36: 5 | G36: COORDENADORIA DE RECURSOS HUMANOS-CRH | H36: 67442 | I36: LUIS CARLOS NASCIMENTO | J36: 04349-OFICIAL ADMINISTRATIVO | K36: NUCL.FREQU.EXPEDIENTE PESSOAL
A37: N | B37: 010009 | C37: 0 | D37: 1 | E37: ADMINISTRACAO SUPERIOR SECRETARIA SEDE | F37: 2 | G37: COORDENADORIA GERAL DE ADMINISTRACAO CGA | H37: 4703 | I37: ROSEMAURO BATISTA | J37: 03924-OFICIAL OPERACIONAL | K37: COORD.GERAL ADMINISTRACAO CGA
A38: N | B38: 012007 | C38: 40 | D38: 1 | E38: ADMINISTRACAO SUPERIOR SECRETARIA SEDE | F38: 2 | G38: COORDENADORIA GERAL DE ADMINISTRACAO CGA | H38: 4703 | I38: ROSEMAURO BATISTA | J38: 03924-OFICIAL OPERACIONAL | K38: COORD.GERAL ADMINISTRACAO CGA
A39: N | B39: 010009 | C39: 0 | D39: 1 | E39: ADMINISTRACAO SUPERIOR SECRETARIA SEDE | F39: 2 | G39: COORDENADORIA GERAL DE ADMINISTRACAO CGA | H39: 4747 | I39: JOAO FIGUEIREDO DA SILVA | J39: 03924-OFICIAL OPERACIONAL | K39: CENTRO DE TRANSPORTES
A40: N | B40: 012007 | C40: 40 | D40: 1 | E40: ADMINISTRACAO SUPERIOR SECRETARIA SEDE | F40: 2 | G40: COORDENADORIA GERAL DE ADMINISTRACAO CGA | H40: 4747 | I40: JOAO FIGUEIREDO DA SILVA | J40: 03924-OFICIAL OPERACIONAL | K40: CENTRO DE TRANSPORTES
A41: N | B41: 010009 | C41: 0 | D41: 1 | E41: ADMINISTRACAO SUPERIOR SECRETARIA SEDE | F41: 2 | G41: COORDENADORIA GERAL DE ADMINISTRACAO CGA | H41: 4747 | I41: PAULO WAGNER AMEDOMAR | J41: 03924-OFICIAL OPERACIONAL | K41: CENTRO DE TRANSPORTES
A42: N | B42: 012007 | C42: 40 | D42: 1 | E42: ADMINISTRACAO SUPERIOR SECRETARIA SEDE | F42: 2 | G42: COORDENADORIA GERAL DE ADMINISTRACAO CGA | H42: 4747 | I42: PAULO WAGNER AMEDOMAR | J42: 03924-OFICIAL OPERACIONAL | K42: CENTRO DE TRANSPORTES
A43: N | B43: 010009 | C43: 0 | D43: 1 | E43: ADMINISTRACAO SUPERIOR SECRETARIA SEDE | F43: 1 | G43: GABINETE DO SECRETARIO E ASSESSORIAS | H43: 4655 | I43: MARCO ANTONIO FELIPE | J43: 03924-OFICIAL OPERACIONAL | K43: GABIN.SECRETARIO ASSESSORIAS
A44: N | B44: 012007 | C44: 40 | D44: 1 | E44: ADMINISTRACAO SUPERIOR SECRETARIA SEDE | F44: 1 | G44: GABINETE DO SECRETARIO E ASSESSORIAS | H44: 4655 | I44: MARCO ANTONIO FELIPE | J44: 03924-OFICIAL OPERACIONAL | K44: GABIN.SECRETARIO ASSESSORIAS
A45: N | B45: 010009 | C45: 0 | D45: 1 | E45: ADMINISTRACAO SUPERIOR SECRETARIA SEDE | F45: 13 | G45: COORDENADORIA DE PLANEJAMENTO DE SAUDE | H45: 48047 | I45: VERA LUCIA DE ARAUJO | J45: 04349-OFICIAL ADMINISTRATIVO | K45: GRUPO INFORMACOES SAUDE CPS
A46: N | B46: 012007 | C46: 20 | D46: 1 | E46: ADMINISTRACAO SUPERIOR SECRETARIA SEDE | F46: 13 | G46: COORDENADORIA DE PLANEJAMENTO DE SAUDE | H46: 48047 | I46: VERA LUCIA DE ARAUJO | J46: 04349-OFICIAL ADMINISTRATIVO | K46: GRUPO INFORMACOES SAUDE CPS
A47: N | B47: 010009 | C47: 0 | D47: 1 | E47: ADMINISTRACAO SUPERIOR SECRETARIA SEDE | F47: 2 | G47: COORDENADORIA GERAL DE ADMINISTRACAO CGA | H47: 4747 | I47: PAULO ROBERTO DAS MERCES | J47: 03924-OFICIAL OPERACIONAL | K47: CENTRO DE TRANSPORTES
A48: N | B48: 012007 | C48: 40 | D48: 1 | E48: ADMINISTRACAO SUPERIOR SECRETARIA SEDE | F48: 2 | G48: COORDENADORIA GERAL DE ADMINISTRACAO CGA | H48: 4747 | I48: PAULO ROBERTO DAS MERCES | J48: 03924-OFICIAL OPERACIONAL | K48: CENTRO DE TRANSPORTES
A49: N | B49: 010009 | C49: 0 | D49: 1 | E49: ADMINISTRACAO SUPERIOR SECRETARIA SEDE | F49: 2 | G49: COORDENADORIA GERAL DE ADMINISTRACAO CGA | H49: 4747 | I49: ROBERTO PEREIRA VICENTE | J49: 03924-OFICIAL OPERACIONAL | K49: CENTRO DE TRANSPORTES
A50: N | B50: 012007 | C50: 40 | D50: 1 | E50: ADMINISTRACAO SUPERIOR SECRETARIA SEDE | F50: 2 | G50: COORDENADORIA GERAL DE ADMINISTRACAO CGA | H50: 4747 | I50: ROBERTO PEREIRA VICENTE | J50: 03924-OFICIAL OPERACIONAL | K50: CENTRO DE TRANSPORTES
A51: N | B51: 010009 | C51: 0 | D51: 1 | E51: ADMINISTRACAO SUPERIOR SECRETARIA SEDE | F51: 5 | G51: COORDENADORIA DE RECURSOS HUMANOS-CRH | H51: 67442 | I51: APARECIDO DA COSTA SANTANA | J51: 03912-AUXILIAR SERV.GERAIS | K51: NUCL.FREQU.EXPEDIENTE PESSOAL
A52: N | B52: 012007 | C52: 40 | D52: 1 | E52: ADMINISTRACAO SUPERIOR SECRETARIA SEDE | F52: 5 | G52: COORDENADORIA DE RECURSOS HUMANOS-CRH | H52: 67442 | I52: APARECIDO DA COSTA SANTANA | J52: 03912-AUXILIAR SERV.GERAIS | K52: NUCL.FREQU.EXPEDIENTE PESSOAL
A53: N | B53: 010009 | C53: 0 | D53: 1 | E53: ADMINISTRACAO SUPERIOR SECRETARIA SEDE | F53: 2 | G53: COORDENADORIA GERAL DE ADMINISTRACAO CGA | H53: 4747 | I53: RAIMUNDO FERREIRA MENDES | J53: 03924-OFICIAL OPERACIONAL | K53: CENTRO DE TRANSPORTES
A54: N | B54: 012007 | C54: 20 | D54: 1 | E54: ADMINISTRACAO SUPERIOR SECRETARIA SEDE | F54: 2 | G54: COORDENADORIA GERAL DE ADMINISTRACAO CGA | H54: 4747 | I54: RAIMUNDO FERREIRA MENDES | J54: 03924-OFICIAL OPERACIONAL | K54: CENTRO DE TRANSPORTES
A55: N | B55: 012007 | C55: 20 | D55: 1 | E55: ADMINISTRACAO SUPERIOR SECRETARIA SEDE | F55: 5 | G55: COORDENADORIA DE RECURSOS HUMANOS-CRH | H55: 67442 | I55: CELI VIEIRA RODRIGUES | J55: 04349-OFICIAL ADMINISTRATIVO | K55: NUCL.FREQU.EXPEDIENTE PESSOAL
A56: N | B56: 008043 | C56: 40 | D56: 1 | E56: ADMINISTRACAO SUPERIOR SECRETARIA SEDE | F56: 1 | G56: GABINETE DO SECRETARIO E ASSESSORIAS | H56: 4655 | I56: MARIA GEMINIANA S OLIVEIRA | J56: 03912-AUXILIAR SERV.GERAIS | K56: GABIN.SECRETARIO ASSESSORIAS
A57: N | B57: 010009 | C57: 0 | D57: 1 | E57: ADMINISTRACAO SUPERIOR SECRETARIA SEDE | F57: 1 | G57: GABINETE DO SECRETARIO E ASSESSORIAS | H57: 4655 | I57: MARIA GEMINIANA S OLIVEIRA | J57: 03912-AUXILIAR SERV.GERAIS | K57: GABIN.SECRETARIO ASSESSORIAS
A58: N | B58: 012007 | C58: 20 | D58: 1 | E58: ADMINISTRACAO SUPERIOR SECRETARIA SEDE | F58: 2 | G58: COORDENADORIA GERAL DE ADMINISTRACAO CGA | H58: 4703 | I58: CLEONICE VENANCIO SOARES | J58: 03912-AUXILIAR SERV.GERAIS | K58: COORD.GERAL ADMINISTRACAO CGA
A59: N | B59: 012007 | C59: 40 | D59: 1 | E59: ADMINISTRACAO SUPERIOR SECRETARIA SEDE | F59: 2 | G59: COORDENADORIA GERAL DE ADMINISTRACAO CGA | H59: 4747 | I59: VALDIR ALVES DA SILVA | J59: 03924-OFICIAL OPERACIONAL | K59: CENTRO DE TRANSPORTES
A60: N | B60: 010009 | C60: 0 | D60: 1 | E60: ADMINISTRACAO SUPERIOR SECRETARIA SEDE | F60: 5 | G60: COORDENADORIA DE RECURSOS HUMANOS-CRH | H60: 67442 | I60: IZABEL CRISTINA ALVES S PRIETO | J60: 04349-OFICIAL ADMINISTRATIVO | K60: NUCL.FREQU.EXPEDIENTE PESSOAL
A61: N | B61: 012007 | C61: 20 | D61: 1 | E61: ADMINISTRACAO SUPERIOR SECRETARIA SEDE | F61: 5 | G61: COORDENADORIA DE RECURSOS HUMANOS-CRH | H61: 67442 | I61: IZABEL CRISTINA ALVES S PRIETO | J61: 04349-OFICIAL ADMINISTRATIVO | K61: NUCL.FREQU.EXPEDIENTE PESSOAL
A62: N | B62: 012007 | C62: 20 | D62: 1 | E62: ADMINISTRACAO SUPERIOR SECRETARIA SEDE | F62: 5 | G62: COORDENADORIA DE RECURSOS HUMANOS-CRH | H62: 67442 | I62: ZENI SANTOS SILVA | J62: 04349-OFICIAL ADMINISTRATIVO | K62: NUCL.FREQU.EXPEDIENTE PESSOAL
A63: R | B63: 012007 | C63: 40 | D63: 9 | E63: COORD.CIENCIA,TECN.INSUMOS ESTRAT.SAUDE | F63: 178 | G63: INSTITUTO BUTANTAN | H63: 7124 | I63: GILDA ALMEIDA DE SOUZA | J63: 05413-AG.TEC. DE ASSIST. A SAUDE | K63: INSTITUTO BUTANTAN
A64: N | B64: 012007 | C64: 40 | D64: 9 | E64: COORD.CIENCIA,TECN.INSUMOS ESTRAT.SAUDE | F64: 178 | G64: INSTITUTO BUTANTAN | H64: 7124 | I64: MANOEL LIMA FILHO | J64: 03912-AUXILIAR SERV.GERAIS | K64: INSTITUTO BUTANTAN
A65: N | B65: 012007 | C65: 40 | D65: 9 | E65: COORD.CIENCIA,TECN.INSUMOS ESTRAT.SAUDE | F65: 178 | G65: INSTITUTO BUTANTAN | H65: 7124 | I65: ARLEIDE CARVALHO | J65: 04071-TECNICO DE LABORATORIO | K65: INSTITUTO BUTANTAN
A66: N | B66: 010009 | C66: 0 | D66: 9 | E66: COORD.CIENCIA,TECN.INSUMOS ESTRAT.SAUDE | F66: 178 | G66: INSTITUTO BUTANTAN | H66: 7124 | I66: CLEUSA APARECIDA DA SILVA | J66: 04349-OFICIAL ADMINISTRATIVO | K66: INSTITUTO BUTANTAN
A67: N | B67: 012007 | C67: 20 | D67: 9 | E67: COORD.CIENCIA,TECN.INSUMOS ESTRAT.SAUDE | F67: 178 | G67: INSTITUTO BUTANTAN | H67: 7124 | I67: CLEUSA APARECIDA DA SILVA | J67: 04349-OFICIAL ADMINISTRATIVO | K67: INSTITUTO BUTANTAN
A68: N | B68: 010009 | C68: 0 | D68: 9 | E68: COORD.CIENCIA,TECN.INSUMOS ESTRAT.SAUDE | F68: 178 | G68: INSTITUTO BUTANTAN | H68: 7124 | I68: FRANCISCO G PURIFICACAO FILHO | J68: 03912-AUXILIAR SERV.GERAIS | K68: INSTITUTO BUTANTAN
A69: N | B69: 012007 | C69: 40 | D69: 9 | E69: COORD.CIENCIA,TECN.INSUMOS ESTRAT.SAUDE | F69: 178 | G69: INSTITUTO BUTANTAN | H69: 7124 | I69: FRANCISCO G PURIFICACAO FILHO | J69: 03912-AUXILIAR SERV.GERAIS | K69: INSTITUTO BUTANTAN
A70: N | B70: 010009 | C70: 0 | D70: 9 | E70: COORD.CIENCIA,TECN.INSUMOS ESTRAT.SAUDE | F70: 178 | G70: INSTITUTO BUTANTAN | H70: 7124 | I70: ROBISON CAROLINO | J70: 03912-AUXILIAR SERV.GERAIS | K70: INSTITUTO BUTANTAN
A71: N | B71: 012007 | C71: 40 | D71: 9 | E71: COORD.CIENCIA,TECN.INSUMOS ESTRAT.SAUDE | F71: 178 | G71: INSTITUTO BUTANTAN | H71: 7124 | I71: ROBISON CAROLINO | J71: 03912-AUXILIAR SERV.GERAIS | K71: INSTITUTO BUTANTAN
A72: N | B72: 012007 | C72: 40 | D72: 9 | E72: COORD.CIENCIA,TECN.INSUMOS ESTRAT.SAUDE | F72: 178 | G72: INSTITUTO BUTANTAN | H72: 7124 | I72: MARISA GOMES TREVELIM | J72: 03912-AUXILIAR SERV.GERAIS | K72: INSTITUTO BUTANTAN
A73: N | B73: 010009 | C73: 0 | D73: 9 | E73: COORD.CIENCIA,TECN.INSUMOS ESTRAT.SAUDE | F73: 178 | G73: INSTITUTO BUTANTAN | H73: 7124 | I73: NIVALDO BATISTA | J73: 03912-AUXILIAR SERV.GERAIS | K73: INSTITUTO BUTANTAN
A74: N | B74: 012007 | C74: 40 | D74: 9 | E74: COORD.CIENCIA,TECN.INSUMOS ESTRAT.SAUDE | F74: 178 | G74: INSTITUTO BUTANTAN | H74: 7124 | I74: NIVALDO BATISTA | J74: 03912-AUXILIAR SERV.GERAIS | K74: INSTITUTO BUTANTAN
A75: N | B75: 010009 | C75: 0 | D75: 9 | E75: COORD.CIENCIA,TECN.INSUMOS ESTRAT.SAUDE | F75: 178 | G75: INSTITUTO BUTANTAN | H75: 7124 | I75: SEVERINO BERNARDINO DE SENA | J75: 03912-AUXILIAR SERV.GERAIS | K75: INSTITUTO BUTANTAN
A76: N | B76: 012007 | C76: 40 | D76: 9 | E76: COORD.CIENCIA,TECN.INSUMOS ESTRAT.SAUDE | F76: 178 | G76: INSTITUTO BUTANTAN | H76: 7124 | I76: SEVERINO BERNARDINO DE SENA | J76: 03912-AUXILIAR SERV.GERAIS | K76: INSTITUTO BUTANTAN
A77: N | B77: 010009 | C77: 0 | D77: 9 | E77: COORD.CIENCIA,TECN.INSUMOS ESTRAT.SAUDE | F77: 178 | G77: INSTITUTO BUTANTAN | H77: 7124 | I77: EDMILSON LEON FEITOSA | J77: 03912-AUXILIAR SERV.GERAIS | K77: INSTITUTO BUTANTAN
A78: N | B78: 012007 | C78: 40 | D78: 9 | E78: COORD.CIENCIA,TECN.INSUMOS ESTRAT.SAUDE | F78: 178 | G78: INSTITUTO BUTANTAN | H78: 7124 | I78: EDMILSON LEON FEITOSA | J78: 03912-AUXILIAR SERV.GERAIS | K78: INSTITUTO BUTANTAN
A79: N | B79: 010009 | C79: 0 | D79: 9 | E79: COORD.CIENCIA,TECN.INSUMOS ESTRAT.SAUDE | F79: 178 | G79: INSTITUTO BUTANTAN | H79: 7124 | I79: REGINA CELIA FERREIRA | J79: 05402-AUXILIAR DE SAUDE | K79: INSTITUTO BUTANTAN
A80: N | B80: 012007 | C80: 40 | D80: 9 | E80: COORD.CIENCIA,TECN.INSUMOS ESTRAT.SAUDE | F80: 178 | G80: INSTITUTO BUTANTAN | H80: 7124 | I80: REGINA CELIA FERREIRA | J80: 05402-AUXILIAR DE SAUDE | K80: INSTITUTO BUTANTAN
A81: N | B81: 010009 | C81: 0 | D81: 9 | E81: COORD.CIENCIA,TECN.INSUMOS ESTRAT.SAUDE | F81: 180 | G81: INSTITUTO DE SAUDE | H81: 7269 | I81: LEOCI APARECIDA DE OLIVEIRA | J81: 03912-AUXILIAR SERV.GERAIS | K81: INSTITUTO DE SAUDE
A82: N | B82: 012007 | C82: 20 | D82: 9 | E82: COORD.CIENCIA,TECN.INSUMOS ESTRAT.SAUDE | F82: 180 | G82: INSTITUTO DE SAUDE | H82: 7269 | I82: LEOCI APARECIDA DE OLIVEIRA | J82: 03912-AUXILIAR SERV.GERAIS | K82: INSTITUTO DE SAUDE
A83: N | B83: 010009 | C83: 0 | D83: 9 | E83: COORD.CIENCIA,TECN.INSUMOS ESTRAT.SAUDE | F83: 180 | G83: INSTITUTO DE SAUDE | H83: 7269 | I83: LEIA DA CRUZ RODRIGUES | J83: 04349-OFICIAL ADMINISTRATIVO | K83: INSTITUTO DE SAUDE
A84: N | B84: 012007 | C84: 10 | D84: 9 | E84: COORD.CIENCIA,TECN.INSUMOS ESTRAT.SAUDE | F84: 180 | G84: INSTITUTO DE SAUDE | H84: 7269 | I84: LEIA DA CRUZ RODRIGUES | J84: 04349-OFICIAL ADMINISTRATIVO | K84: INSTITUTO DE SAUDE
A85: N | B85: 012007 | C85: 20 | D85: 9 | E85: COORD.CIENCIA,TECN.INSUMOS ESTRAT.SAUDE | F85: 178 | G85: INSTITUTO BUTANTAN | H85: 7124 | I85: ALVARO IMPERATRIZ FILHO | J85: 05526-MEDICO III | K85: INSTITUTO BUTANTAN
A86: N | B86: 010009 | C86: 0 | D86: 9 | E86: COORD.CIENCIA,TECN.INSUMOS ESTRAT.SAUDE | F86: 178 | G86: INSTITUTO BUTANTAN | H86: 7124 | I86: ANGELINA SILVA CARDOSO PINTO | J86: 04078-AUXILIAR DE LABORATORIO | K86: INSTITUTO BUTANTAN
A87: N | B87: 012007 | C87: 20 | D87: 9 | E87: COORD.CIENCIA,TECN.INSUMOS ESTRAT.SAUDE | F87: 178 | G87: INSTITUTO BUTANTAN | H87: 7124 | I87: ANGELINA SILVA CARDOSO PINTO | J87: 04078-AUXILIAR DE LABORATORIO | K87: INSTITUTO BUTANTAN
A88: N | B88: 012007 | C88: 40 | D88: 9 | E88: COORD.CIENCIA,TECN.INSUMOS ESTRAT.SAUDE | F88: 178 | G88: INSTITUTO BUTANTAN | H88: 7124 | I88: FAN HUI WEN | J88: 05525-MEDICO II | K88: INSTITUTO BUTANTAN
A89: N | B89: 010009 | C89: 0 | D89: 9 | E89: COORD.CIENCIA,TECN.INSUMOS ESTRAT.SAUDE | F89: 178 | G89: INSTITUTO BUTANTAN | H89: 7124 | I89: DEBORA GOMES FERREIRA | J89: 03914-CHEFE II | K89: INSTITUTO BUTANTAN
A90: N | B90: 012007 | C90: 40 | D90: 9 | E90: COORD.CIENCIA,TECN.INSUMOS ESTRAT.SAUDE | F90: 178 | G90: INSTITUTO BUTANTAN | H90: 7124 | I90: DEBORA GOMES FERREIRA | J90: 03914-CHEFE II | K90: INSTITUTO BUTANTAN
A91: N | B91: 012007 | C91: 40 | D91: 9 | E91: COORD.CIENCIA,TECN.INSUMOS ESTRAT.SAUDE | F91: 178 | G91: INSTITUTO BUTANTAN | H91: 7124 | I91: MARCO ANTONIO DE BARROS | J91: 03912-AUXILIAR SERV.GERAIS | K91: INSTITUTO BUTANTAN
A92: N | B92: 012007 | C92: 40 | D92: 9 | E92: COORD.CIENCIA,TECN.INSUMOS ESTRAT.SAUDE | F92: 178 | G92: INSTITUTO BUTANTAN | H92: 7124 | I92: MARISA REGINA RAMOS SEVERINO | J92: 03912-AUXILIAR SERV.GERAIS | K92: INSTITUTO BUTANTAN
A93: N | B93: 012007 | C93: 40 | D93: 9 | E93: COORD.CIENCIA,TECN.INSUMOS ESTRAT.SAUDE | F93: 178 | G93: INSTITUTO BUTANTAN | H93: 7124 | I93: WILSON DA CONCEICAO RUA | J93: 03912-AUXILIAR SERV.GERAIS | K93: INSTITUTO BUTANTAN
A94: N | B94: 012007 | C94: 40 | D94: 9 | E94: COORD.CIENCIA,TECN.INSUMOS ESTRAT.SAUDE | F94: 178 | G94: INSTITUTO BUTANTAN | H94: 7124 | I94: ELAINE CRISTINA DE FARIA | J94: 03912-AUXILIAR SERV.GERAIS | K94: INSTITUTO BUTANTAN
A95: N | B95: 012007 | C95: 20 | D95: 9 | E95: COORD.CIENCIA,TECN.INSUMOS ESTRAT.SAUDE | F95: 178 | G95: INSTITUTO BUTANTAN | H95: 7124 | I95: ANTONIO CARLOS DUARTE | J95: 03912-AUXILIAR SERV.GERAIS | K95: INSTITUTO BUTANTAN
A96: N | B96: 012007 | C96: 40 | D96: 9 | E96: COORD.CIENCIA,TECN.INSUMOS ESTRAT.SAUDE | F96: 178 | G96: INSTITUTO BUTANTAN | H96: 7124 | I96: VALDIR APARECIDO BORBA | J96: 03912-AUXILIAR SERV.GERAIS | K96: INSTITUTO BUTANTAN
A97: N | B97: 012007 | C97: 40 | D97: 9 | E97: COORD.CIENCIA,TECN.INSUMOS ESTRAT.SAUDE | F97: 178 | G97: INSTITUTO BUTANTAN | H97: 7124 | I97: ELIO JOSE DA SILVA | J97: 03912-AUXILIAR SERV.GERAIS | K97: INSTITUTO BUTANTAN
A98: N | B98: 010009 | C98: 0 | D98: 9 | E98: COORD.CIENCIA,TECN.INSUMOS ESTRAT.SAUDE | F98: 178 | G98: INSTITUTO BUTANTAN | H98: 7124 | I98: JOAO CARLOS FERREIRA SANTOS | J98: 04078-AUXILIAR DE LABORATORIO | K98: INSTITUTO BUTANTAN
A99: N | B99: 012007 | C99: 40 | D99: 9 | E99: COORD.CIENCIA,TECN.INSUMOS ESTRAT.SAUDE | F99: 178 | G99: INSTITUTO BUTANTAN | H99: 7124 | I99: JOAO CARLOS FERREIRA SANTOS | J99: 04078-AUXILIAR DE LABORATORIO | K99: INSTITUTO BUTANTAN
A100: N | B100: 010009 | C100: 0 | D100: 9 | E100: COORD.CIENCIA,TECN.INSUMOS ESTRAT.SAUDE | F100: 178 | G100: INSTITUTO BUTANTAN | H100: 7124 | I100: EPITACIO SILVA FILHO | J100: 03912-AUXILIAR SERV.GERAIS | K100: INSTITUTO BUTANTAN
A101: N | B101: 012007 | C101: 40 | D101: 9 | E101: COORD.CIENCIA,TECN.INSUMOS ESTRAT.SAUDE | F101: 178 | G101: INSTITUTO BUTANTAN | H101: 7124 | I101: EPITACIO SILVA FILHO | J101: 03912-AUXILIAR SERV.GERAIS | K101: INSTITUTO BUTANTAN
A102: N | B102: 012007 | C102: 40 | D102: 9 | E102: COORD.CIENCIA,TECN.INSUMOS ESTRAT.SAUDE | F102: 178 | G102: INSTITUTO BUTANTAN | H102: 7124 | I102: MARA REGINA BRAGA | J102: 04078-AUXILIAR DE LABORATORIO | K102: INSTITUTO BUTANTAN
A103: N | B103: 010009 | C103: 0 | D103: 9 | E103: COORD.CIENCIA,TECN.INSUMOS ESTRAT.SAUDE | F103: 178 | G103: INSTITUTO BUTANTAN | H103: 7124 | I103: ROSALINA APARECIDA DE ANDRADE | J103: 04349-OFICIAL ADMINISTRATIVO | K103: INSTITUTO BUTANTAN
A104: N | B104: 012007 | C104: 40 | D104: 9 | E104: COORD.CIENCIA,TECN.INSUMOS ESTRAT.SAUDE | F104: 178 | G104: INSTITUTO BUTANTAN | H104: 7124 | I104: ROSALINA APARECIDA DE ANDRADE | J104: 04349-OFICIAL ADMINISTRATIVO | K104: INSTITUTO BUTANTAN
A105: N | B105: 010009 | C105: 0 | D105: 9 | E105: COORD.CIENCIA,TECN.INSUMOS ESTRAT.SAUDE | F105: 178 | G105: INSTITUTO BUTANTAN | H105: 7124 | I105: MARIA CRISTINA F R ALMEIDA | J105: 04071-TECNICO DE LABORATORIO | K105: INSTITUTO BUTANTAN
A106: N | B106: 012007 | C106: 20 | D106: 9 | E106: COORD.CIENCIA,TECN.INSUMOS ESTRAT.SAUDE | F106: 178 | G106: INSTITUTO BUTANTAN | H106: 7124 | I106: MARIA CRISTINA F R ALMEIDA | J106: 04071-TECNICO DE LABORATORIO | K106: INSTITUTO BUTANTAN
A107: N | B107: 012007 | C107: 20 | D107: 9 | E107: COORD.CIENCIA,TECN.INSUMOS ESTRAT.SAUDE | F107: 178 | G107: INSTITUTO BUTANTAN | H107: 7124 | I107: ANA CLAUDIA SANTANA | J107: 04078-AUXILIAR DE LABORATORIO | K107: INSTITUTO BUTANTAN
A108: N | B108: 012007 | C108: 40 | D108: 9 | E108: COORD.CIENCIA,TECN.INSUMOS ESTRAT.SAUDE | F108: 178 | G108: INSTITUTO BUTANTAN | H108: 7124 | I108: ANTONIA SANTOS SOUZA | J108: 03912-AUXILIAR SERV.GERAIS | K108: INSTITUTO BUTANTAN
A109: N | B109: 012007 | C109: 20 | D109: 9 | E109: COORD.CIENCIA,TECN.INSUMOS ESTRAT.SAUDE | F109: 178 | G109: INSTITUTO BUTANTAN | H109: 7124 | I109: KARIN NAVARRO TOZZI CRUZ | J109: 05413-AG.TEC. DE ASSIST. A SAUDE | K109: INSTITUTO BUTANTAN
A110: N | B110: 010009 | C110: 10 | D110: 9 | E110: COORD.CIENCIA,TECN.INSUMOS ESTRAT.SAUDE | F110: 178 | G110: INSTITUTO BUTANTAN | H110: 7124 | I110: ROSANA APARECIDA C C COELHO | J110: 03912-AUXILIAR SERV.GERAIS | K110: INSTITUTO BUTANTAN
A111: N | B111: 010009 | C111: 0 | D111: 9 | E111: COORD.CIENCIA,TECN.INSUMOS ESTRAT.SAUDE | F111: 178 | G111: INSTITUTO BUTANTAN | H111: 7124 | I111: ROSANA APARECIDA C C COELHO | J111: 03912-AUXILIAR SERV.GERAIS | K111: INSTITUTO BUTANTAN
A112: N | B112: 012007 | C112: 10 | D112: 9 | E112: COORD.CIENCIA,TECN.INSUMOS ESTRAT.SAUDE | F112: 178 | G112: INSTITUTO BUTANTAN | H112: 7124 | I112: ROSANA APARECIDA C C COELHO | J112: 03912-AUXILIAR SERV.GERAIS | K112: INSTITUTO BUTANTAN
A113: N | B113: 012007 | C113: 40 | D113: 9 | E113: COORD.CIENCIA,TECN.INSUMOS ESTRAT.SAUDE | F113: 178 | G113: INSTITUTO BUTANTAN | H113: 7124 | I113: ROSANA APARECIDA C C COELHO | J113: 03912-AUXILIAR SERV.GERAIS | K113: INSTITUTO BUTANTAN
A114: N | B114: 012007 | C114: 40 | D114: 9 | E114: COORD.CIENCIA,TECN.INSUMOS ESTRAT.SAUDE | F114: 178 | G114: INSTITUTO BUTANTAN | H114: 7124 | I114: GILENO BRASIL DA COSTA | J114: 03912-AUXILIAR SERV.GERAIS | K114: INSTITUTO BUTANTAN
A115: N | B115: 012007 | C115: 20 | D115: 9 | E115: COORD.CIENCIA,TECN.INSUMOS ESTRAT.SAUDE | F115: 178 | G115: INSTITUTO BUTANTAN | H115: 7124 | I115: CONCEICAO DE MARIA LEITE LEAL | J115: 04078-AUXILIAR DE LABORATORIO | K115: INSTITUTO BUTANTAN
A116: N | B116: 010009 | C116: 0 | D116: 9 | E116: COORD.CIENCIA,TECN.INSUMOS ESTRAT.SAUDE | F116: 178 | G116: INSTITUTO BUTANTAN | H116: 7124 | I116: CLAUDIA CAVALCANTE SANTOS | J116: 04349-OFICIAL ADMINISTRATIVO | K116: INSTITUTO BUTANTAN
A117: N | B117: 012007 | C117: 20 | D117: 9 | E117: COORD.CIENCIA,TECN.INSUMOS ESTRAT.SAUDE | F117: 178 | G117: INSTITUTO BUTANTAN | H117: 7124 | I117: CLAUDIA CAVALCANTE SANTOS | J117: 04349-OFICIAL ADMINISTRATIVO | K117: INSTITUTO BUTANTAN
A118: N | B118: 012007 | C118: 40 | D118: 9 | E118: COORD.CIENCIA,TECN.INSUMOS ESTRAT.SAUDE | F118: 178 | G118: INSTITUTO BUTANTAN | H118: 7124 | I118: SUELY LUCIA MURO RAIS ASSAF | J118: 05525-MEDICO II | K118: INSTITUTO BUTANTAN
A119: N | B119: 012007 | C119: 20 | D119: 9 | E119: COORD.CIENCIA,TECN.INSUMOS ESTRAT.SAUDE | F119: 178 | G119: INSTITUTO BUTANTAN | H119: 7124 | I119: ALEXANDRE EDUARDO DOS SANTOS | J119: 04349-OFICIAL ADMINISTRATIVO | K119: INSTITUTO BUTANTAN
A120: N | B120: 010009 | C120: 0 | D120: 9 | E120: COORD.CIENCIA,TECN.INSUMOS ESTRAT.SAUDE | F120: 178 | G120: INSTITUTO BUTANTAN | H120: 7124 | I120: ROSANGELA RODRIGUES BARRETO | J120: 04349-OFICIAL ADMINISTRATIVO | K120: INSTITUTO BUTANTAN
A121: N | B121: 012007 | C121: 20 | D121: 9 | E121: COORD.CIENCIA,TECN.INSUMOS ESTRAT.SAUDE | F121: 178 | G121: INSTITUTO BUTANTAN | H121: 7124 | I121: ROSANGELA RODRIGUES BARRETO | J121: 04349-OFICIAL ADMINISTRATIVO | K121: INSTITUTO BUTANTAN
A122: N | B122: 012007 | C122: 20 | D122: 9 | E122: COORD.CIENCIA,TECN.INSUMOS ESTRAT.SAUDE | F122: 178 | G122: INSTITUTO BUTANTAN | H122: 7124 | I122: PATRICIA CILENE DUARTE M ROSSI | J122: 04071-TECNICO DE LABORATORIO | K122: INSTITUTO BUTANTAN
A123: N | B123: 010009 | C123: 0 | D123: 10 | E123: COORDEN.GESTAO CONTRATOS SERVICOS SAUDE | F123: 192 | G123: GABINETE DO COORDENADOR | H123: 91068 | I123: JOSE MARIA DOS REIS | J123: 03924-OFICIAL OPERACIONAL | K123: GABINETE DO COORDENADOR-CGCSS
A124: N | B124: 012007 | C124: 40 | D124: 10 | E124: COORDEN.GESTAO CONTRATOS SERVICOS SAUDE | F124: 192 | G124: GABINETE DO COORDENADOR | H124: 91068 | I124: JOSE MARIA DOS REIS | J124: 03924-OFICIAL OPERACIONAL | K124: GABINETE DO COORDENADOR-CGCSS
A125: N | B125: 012007 | C125: 20 | D125: 7 | E125: COORDENADORIA DE CONTROLE DE DOENCAS | F125: 107 | G125: CENTRO DE VIGILANCIA SANITARIA | H125: 73837 | I125: FRANCISCO ARNALDO DE OLIVEIRA | J125: 03912-AUXILIAR SERV.GERAIS | K125: G.VIGILANCIA SANITARIA CAPITAL
A126: N | B126: 010009 | C126: 0 | D126: 7 | E126: COORDENADORIA DE CONTROLE DE DOENCAS | F126: 194 | G126: C.VIGIL.EPIDEMIOLOGICA "PROF.ALEXANDRE V | H126: 3930 | I126: MIRIAN WALICEK | J126: 05413-AG.TEC. DE ASSIST. A SAUDE | K126: G.V.E.-PRES.VENCESLAU-GVE XXII
A127: N | B127: 012007 | C127: 20 | D127: 7 | E127: COORDENADORIA DE CONTROLE DE DOENCAS | F127: 194 | G127: C.VIGIL.EPIDEMIOLOGICA "PROF.ALEXANDRE V | H127: 3930 | I127: MIRIAN WALICEK | J127: 05413-AG.TEC. DE ASSIST. A SAUDE | K127: G.V.E.-PRES.VENCESLAU-GVE XXII
A128: N | B128: 010009 | C128: 0 | D128: 7 | E128: COORDENADORIA DE CONTROLE DE DOENCAS | F128: 110 | G128: CENTRO REFERENCIA E TREINAMENTO-DST/AIDS | H128: 86273 | I128: VALVINA MADEIRA ADAO | J128: 05413-AG.TEC. DE ASSIST. A SAUDE | K128: NUCLEO PESSOAL-C.R.T.DST/AIDS
A129: N | B129: 012007 | C129: 40 | D129: 7 | E129: COORDENADORIA DE CONTROLE DE DOENCAS | F129: 110 | G129: CENTRO REFERENCIA E TREINAMENTO-DST/AIDS | H129: 86273 | I129: VALVINA MADEIRA ADAO | J129: 05413-AG.TEC. DE ASSIST. A SAUDE | K129: NUCLEO PESSOAL-C.R.T.DST/AIDS
A130: N | B130: 010009 | C130: 0 | D130: 7 | E130: COORDENADORIA DE CONTROLE DE DOENCAS | F130: 107 | G130: CENTRO DE VIGILANCIA SANITARIA | H130: 73962 | I130: MARIA MIHOKO YAMAMOTO SUZUKI | J130: 05413-AG.TEC. DE ASSIST. A SAUDE | K130: SUBGR.V.SAN.M.CRUZES-SGVS-VIII
A131: N | B131: 012007 | C131: 40 | D131: 7 | E131: COORDENADORIA DE CONTROLE DE DOENCAS | F131: 107 | G131: CENTRO DE VIGILANCIA SANITARIA | H131: 73962 | I131: MARIA MIHOKO YAMAMOTO SUZUKI | J131: 05413-AG.TEC. DE ASSIST. A SAUDE | K131: SUBGR.V.SAN.M.CRUZES-SGVS-VIII
A132: R | B132: 012007 | C132: 20 | D132: 7 | E132: COORDENADORIA DE CONTROLE DE DOENCAS | F132: 107 | G132: CENTRO DE VIGILANCIA SANITARIA | H132: 73764 | I132: JACI BARBOSA DOS SANTOS | J132: 03901-ANALISTA SOCIOCULTURAL | K132: G.V.S.-CAPITAL-GVS IV
A133: N | B133: 012007 | C133: 40 | D133: 7 | E133: COORDENADORIA DE CONTROLE DE DOENCAS | F133: 107 | G133: CENTRO DE VIGILANCIA SANITARIA | H133: 73806 | I133: MARIA JOSE HERNANDES CASTRO | J133: 05413-AG.TEC. DE ASSIST. A SAUDE | K133: G.V.S.-CAPITAL-GVS VI
A134: N | B134: 010009 | C134: 0 | D134: 7 | E134: COORDENADORIA DE CONTROLE DE DOENCAS | F134: 2 | G134: INSTITUTO ADOLFO LUTZ | H134: 7015 | I134: JUSSARA FAUSTINO NICOLAU | J134: 05413-AG.TEC. DE ASSIST. A SAUDE | K134: CLR - IAL DE SANTOS
A135: N | B135: 012007 | C135: 40 | D135: 7 | E135: COORDENADORIA DE CONTROLE DE DOENCAS | F135: 2 | G135: INSTITUTO ADOLFO LUTZ | H135: 7015 | I135: JUSSARA FAUSTINO NICOLAU | J135: 05413-AG.TEC. DE ASSIST. A SAUDE | K135: CLR - IAL DE SANTOS
A136: N | B136: 008043 | C136: 40 | D136: 7 | E136: COORDENADORIA DE CONTROLE DE DOENCAS | F136: 2 | G136: INSTITUTO ADOLFO LUTZ | H136: 7051 | I136: GENI URIAS | J136: 04071-TECNICO DE LABORATORIO | K136: CLR - IAL DE PRES. PRUDENTE
A137: N | B137: 008222 | C137: 6 | D137: 7 | E137: COORDENADORIA DE CONTROLE DE DOENCAS | F137: 2 | G137: INSTITUTO ADOLFO LUTZ | H137: 7051 | I137: GENI URIAS | J137: 04071-TECNICO DE LABORATORIO | K137: CLR - IAL DE PRES. PRUDENTE
A138: N | B138: 010009 | C138: 0 | D138: 7 | E138: COORDENADORIA DE CONTROLE DE DOENCAS | F138: 2 | G138: INSTITUTO ADOLFO LUTZ | H138: 7051 | I138: GENI URIAS | J138: 04071-TECNICO DE LABORATORIO | K138: CLR - IAL DE PRES. PRUDENTE
A139: N | B139: 012007 | C139: 40 | D139: 7 | E139: COORDENADORIA DE CONTROLE DE DOENCAS | F139: 2 | G139: INSTITUTO ADOLFO LUTZ | H139: 6921 | I139: ROSANGELA BORGES REINA | J139: 05413-AG.TEC. DE ASSIST. A SAUDE | K139: INSTITUTO ADOLFO LUTZ
A140: N | B140: 012007 | C140: 40 | D140: 7 | E140: COORDENADORIA DE CONTROLE DE DOENCAS | F140: 2 | G140: INSTITUTO ADOLFO LUTZ | H140: 6921 | I140: CARMEM DO SOCORRO GUILHERME | J140: 05413-AG.TEC. DE ASSIST. A SAUDE | K140: INSTITUTO ADOLFO LUTZ
A141: N | B141: 010009 | C141: 0 | D141: 7 | E141: COORDENADORIA DE CONTROLE DE DOENCAS | F141: 107 | G141: CENTRO DE VIGILANCIA SANITARIA | H141: 72737 | I141: MARCIA CRISTINA CURY BASSOTO | J141: 05406-DIRETOR TECNICO DE SAUDE II | K141: G.VIGIL.SANITARIA BAURU-GVS-XV
A142: N | B142: 012007 | C142: 20 | D142: 7 | E142: COORDENADORIA DE CONTROLE DE DOENCAS | F142: 107 | G142: CENTRO DE VIGILANCIA SANITARIA | H142: 72737 | I142: MARCIA CRISTINA CURY BASSOTO | J142: 05406-DIRETOR TECNICO DE SAUDE II | K142: G.VIGIL.SANITARIA BAURU-GVS-XV
A143: N | B143: 012007 | C143: 20 | D143: 7 | E143: COORDENADORIA DE CONTROLE DE DOENCAS | F143: 107 | G143: CENTRO DE VIGILANCIA SANITARIA | H143: 72321 | I143: ROSECLAIR BRANDINI B NATALIN | J143: 05413-AG.TEC. DE ASSIST. A SAUDE | K143: GR.VIGIL.SANITAR.JALES-GVS-XXX
A144: N | B144: 010009 | C144: 0 | D144: 7 | E144: COORDENADORIA DE CONTROLE DE DOENCAS | F144: 107 | G144: CENTRO DE VIGILANCIA SANITARIA | H144: 83312 | I144: MARIA FATIMA FAZZERI TEIXEIRA | J144: 04038-ENFERMEIRO | K144: SUBG.V.SAN.TAUBATE-SGVS-XXXIII
A145: N | B145: 012007 | C145: 20 | D145: 7 | E145: COORDENADORIA DE CONTROLE DE DOENCAS | F145: 107 | G145: CENTRO DE VIGILANCIA SANITARIA | H145: 83312 | I145: MARIA FATIMA FAZZERI TEIXEIRA | J145: 04038-ENFERMEIRO | K145: SUBG.V.SAN.TAUBATE-SGVS-XXXIII
A146: N | B146: 010009 | C146: 0 | D146: 7 | E146: COORDENADORIA DE CONTROLE DE DOENCAS | F146: 193 | G146: GRUPO DE GERENCIAMENTO ADMINISTRATIVO | H146: 30855 | I146: JANDIRA GUIMARAES S ANDRADE | J146: 04349-OFICIAL ADMINISTRATIVO | K146: N.AP.OP.REGI-NAOR-MARILIA
A147: N | B147: 012007 | C147: 20 | D147: 7 | E147: COORDENADORIA DE CONTROLE DE DOENCAS | F147: 193 | G147: GRUPO DE GERENCIAMENTO ADMINISTRATIVO | H147: 30855 | I147: JANDIRA GUIMARAES S ANDRADE | J147: 04349-OFICIAL ADMINISTRATIVO | K147: N.AP.OP.REGI-NAOR-MARILIA
A148: N | B148: 010009 | C148: 0 | D148: 7 | E148: COORDENADORIA DE CONTROLE DE DOENCAS | F148: 107 | G148: CENTRO DE VIGILANCIA SANITARIA | H148: 72321 | I148: ARILDA SCHADECK DE ALMEIDA | J148: 05413-AG.TEC. DE ASSIST. A SAUDE | K148: GR.VIGIL.SANITAR.JALES-GVS-XXX
A149: N | B149: 012007 | C149: 20 | D149: 7 | E149: COORDENADORIA DE CONTROLE DE DOENCAS | F149: 107 | G149: CENTRO DE VIGILANCIA SANITARIA | H149: 72321 | I149: ARILDA SCHADECK DE ALMEIDA | J149: 05413-AG.TEC. DE ASSIST. A SAUDE | K149: GR.VIGIL.SANITAR.JALES-GVS-XXX
A150: N | B150: 010009 | C150: 0 | D150: 7 | E150: COORDENADORIA DE CONTROLE DE DOENCAS | F150: 194 | G150: C.VIGIL.EPIDEMIOLOGICA "PROF.ALEXANDRE V | H150: 3921 | I150: BENVINDA APARECIDA G VIEIRA | J150: 04038-ENFERMEIRO | K150: G.V.E.-PIRACICABA-GVE XX
A151: N | B151: 012007 | C151: 20 | D151: 7 | E151: COORDENADORIA DE CONTROLE DE DOENCAS | F151: 194 | G151: C.VIGIL.EPIDEMIOLOGICA "PROF.ALEXANDRE V | H151: 3921 | I151: BENVINDA APARECIDA G VIEIRA | J151: 04038-ENFERMEIRO | K151: G.V.E.-PIRACICABA-GVE XX
A152: N | B152: 012007 | C152: 20 | D152: 7 | E152: COORDENADORIA DE CONTROLE DE DOENCAS | F152: 194 | G152: C.VIGIL.EPIDEMIOLOGICA "PROF.ALEXANDRE V | H152: 71024 | I152: MARIA DO SOCORRO DE OLIVEIRA | J152: 05413-AG.TEC. DE ASSIST. A SAUDE | K152: GVE-REGISTRO-GVE-XXIII
A153: N | B153: 010009 | C153: 0 | D153: 7 | E153: COORDENADORIA DE CONTROLE DE DOENCAS | F153: 2 | G153: INSTITUTO ADOLFO LUTZ | H153: 7101 | I153: MARIA JULIA DE LIMA LOPES | J153: 05413-AG.TEC. DE ASSIST. A SAUDE | K153: CLR - IAL DE SANTO ANDRE
A154: N | B154: 012007 | C154: 20 | D154: 7 | E154: COORDENADORIA DE CONTROLE DE DOENCAS | F154: 2 | G154: INSTITUTO ADOLFO LUTZ | H154: 7101 | I154: MARIA JULIA DE LIMA LOPES | J154: 05413-AG.TEC. DE ASSIST. A SAUDE | K154: CLR - IAL DE SANTO ANDRE
A155: N | B155: 010009 | C155: 0 | D155: 7 | E155: COORDENADORIA DE CONTROLE DE DOENCAS | F155: 107 | G155: CENTRO DE VIGILANCIA SANITARIA | H155: 72824 | I155: ANGELA MARIA ROQUE PALMA | J155: 04071-TECNICO DE LABORATORIO | K155: G.VIG.SAN.S.J.CAMPOS-GVS-XXVII
A156: N | B156: 012007 | C156: 20 | D156: 7 | E156: COORDENADORIA DE CONTROLE DE DOENCAS | F156: 107 | G156: CENTRO DE VIGILANCIA SANITARIA | H156: 72824 | I156: ANGELA MARIA ROQUE PALMA | J156: 04071-TECNICO DE LABORATORIO | K156: G.VIG.SAN.S.J.CAMPOS-GVS-XXVII
A157: N | B157: 010009 | C157: 0 | D157: 7 | E157: COORDENADORIA DE CONTROLE DE DOENCAS | F157: 107 | G157: CENTRO DE VIGILANCIA SANITARIA | H157: 73717 | I157: CLAUDIA REGINA POLIDORO | J157: 05413-AG.TEC. DE ASSIST. A SAUDE | K157: GR.VIG.SANITAR.S.ANDRE-GVS-VII
A158: N | B158: 012007 | C158: 20 | D158: 7 | E158: COORDENADORIA DE CONTROLE DE DOENCAS | F158: 107 | G158: CENTRO DE VIGILANCIA SANITARIA | H158: 73717 | I158: CLAUDIA REGINA POLIDORO | J158: 05413-AG.TEC. DE ASSIST. A SAUDE | K158: GR.VIG.SANITAR.S.ANDRE-GVS-VII
A159: N | B159: 012007 | C159: 20 | D159: 7 | E159: COORDENADORIA DE CONTROLE DE DOENCAS | F159: 107 | G159: CENTRO DE VIGILANCIA SANITARIA | H159: 72902 | I159: MARIA CRISTINA MEGID | J159: 05526-MEDICO III | K159: SEC.PES.-CENTRO VIG.SANITARIA
A160: N | B160: 012007 | C160: 20 | D160: 7 | E160: COORDENADORIA DE CONTROLE DE DOENCAS | F160: 107 | G160: CENTRO DE VIGILANCIA SANITARIA | H160: 72781 | I160: ENIO SANTOS SILVA | J160: 07859-ENGENHEIRO AGRONOMO VI | K160: G.VIG.SANIT.REGISTRO-GVS-XXIII
A161: N | B161: 010009 | C161: 0 | D161: 7 | E161: COORDENADORIA DE CONTROLE DE DOENCAS | F161: 107 | G161: CENTRO DE VIGILANCIA SANITARIA | H161: 72648 | I161: MARIA DO CARMO TOLEDO | J161: 05413-AG.TEC. DE ASSIST. A SAUDE | K161: G.VIG.SANIT.TAUBATE-GVS-XXXIII
A162: N | B162: 012007 | C162: 20 | D162: 7 | E162: COORDENADORIA DE CONTROLE DE DOENCAS | F162: 107 | G162: CENTRO DE VIGILANCIA SANITARIA | H162: 72648 | I162: MARIA DO CARMO TOLEDO | J162: 05413-AG.TEC. DE ASSIST. A SAUDE | K162: G.VIG.SANIT.TAUBATE-GVS-XXXIII
A163: N | B163: 010009 | C163: 0 | D163: 7 | E163: COORDENADORIA DE CONTROLE DE DOENCAS | F163: 193 | G163: GRUPO DE GERENCIAMENTO ADMINISTRATIVO | H163: 30867 | I163: ELI LOURDES DE OLIVEIRA | J163: 04349-OFICIAL ADMINISTRATIVO | K163: N.AP.OP.REG.-NAOR-SOROCABA
A164: N | B164: 012007 | C164: 20 | D164: 7 | E164: COORDENADORIA DE CONTROLE DE DOENCAS | F164: 193 | G164: GRUPO DE GERENCIAMENTO ADMINISTRATIVO | H164: 30867 | I164: ELI LOURDES DE OLIVEIRA | J164: 04349-OFICIAL ADMINISTRATIVO | K164: N.AP.OP.REG.-NAOR-SOROCABA
A165: N | B165: 010009 | C165: 10 | D165: 7 | E165: COORDENADORIA DE CONTROLE DE DOENCAS | F165: 2 | G165: INSTITUTO ADOLFO LUTZ | H165: 7039 | I165: ANA MARIA CAIRES | J165: 05402-AUXILIAR DE SAUDE | K165: CLR - IAL DE BAURU
A166: N | B166: 012007 | C166: 20 | D166: 7 | E166: COORDENADORIA DE CONTROLE DE DOENCAS | F166: 2 | G166: INSTITUTO ADOLFO LUTZ | H166: 7039 | I166: ANA MARIA CAIRES | J166: 05402-AUXILIAR DE SAUDE | K166: CLR - IAL DE BAURU
A167: N | B167: 010009 | C167: 0 | D167: 7 | E167: COORDENADORIA DE CONTROLE DE DOENCAS | F167: 107 | G167: CENTRO DE VIGILANCIA SANITARIA | H167: 73730 | I167: IRACI PACHECO DE LIMA SILVA | J167: 04349-OFICIAL ADMINISTRATIVO | K167: GR.VIG.SANITARIA OSASCO-GVS-X
A168: N | B168: 012007 | C168: 20 | D168: 7 | E168: COORDENADORIA DE CONTROLE DE DOENCAS | F168: 107 | G168: CENTRO DE VIGILANCIA SANITARIA | H168: 73730 | I168: IRACI PACHECO DE LIMA SILVA | J168: 04349-OFICIAL ADMINISTRATIVO | K168: GR.VIG.SANITARIA OSASCO-GVS-X
A169: N | B169: 012007 | C169: 20 | D169: 7 | E169: COORDENADORIA DE CONTROLE DE DOENCAS | F169: 107 | G169: CENTRO DE VIGILANCIA SANITARIA | H169: 72759 | I169: LUCIA MIYAKO MIURA ANZAI | J169: 04038-ENFERMEIRO | K169: GR.VIG.SANITAR.MARILIA GVS XIX
A170: N | B170: 010009 | C170: 0 | D170: 7 | E170: COORDENADORIA DE CONTROLE DE DOENCAS | F170: 107 | G170: CENTRO DE VIGILANCIA SANITARIA | H170: 21279 | I170: GENI MARIA OLIVEIRA SERAFINO | J170: 07847-ENGENHEIRO VI | K170: SUBGR.V.SAN.SOROCABA-SGVS-XXXI
A171: N | B171: 012007 | C171: 20 | D171: 7 | E171: COORDENADORIA DE CONTROLE DE DOENCAS | F171: 107 | G171: CENTRO DE VIGILANCIA SANITARIA | H171: 21279 | I171: GENI MARIA OLIVEIRA SERAFINO | J171: 07847-ENGENHEIRO VI | K171: SUBGR.V.SAN.SOROCABA-SGVS-XXXI
A172: N | B172: 012007 | C172: 40 | D172: 7 | E172: COORDENADORIA DE CONTROLE DE DOENCAS | F172: 2 | G172: INSTITUTO ADOLFO LUTZ | H172: 7015 | I172: MARIA ANA RIBEIRO | J172: 04349-OFICIAL ADMINISTRATIVO | K172: CLR - IAL DE SANTOS
A173: N | B173: 010009 | C173: 0 | D173: 7 | E173: COORDENADORIA DE CONTROLE DE DOENCAS | F173: 107 | G173: CENTRO DE VIGILANCIA SANITARIA | H173: 73962 | I173: MARCIA BENTO DA SILVA | J173: 07853-ARQUITETO VI | K173: SUBGR.V.SAN.M.CRUZES-SGVS-VIII
A174: N | B174: 012007 | C174: 20 | D174: 7 | E174: COORDENADORIA DE CONTROLE DE DOENCAS | F174: 107 | G174: CENTRO DE VIGILANCIA SANITARIA | H174: 73962 | I174: MARCIA BENTO DA SILVA | J174: 07853-ARQUITETO VI | K174: SUBGR.V.SAN.M.CRUZES-SGVS-VIII
A175: N | B175: 012007 | C175: 20 | D175: 7 | E175: COORDENADORIA DE CONTROLE DE DOENCAS | F175: 194 | G175: C.VIGIL.EPIDEMIOLOGICA "PROF.ALEXANDRE V | H175: 3915 | I175: YARA MARITZA ALVES MACHADO | J175: 05413-AG.TEC. DE ASSIST. A SAUDE | K175: G.V.E.-JALES-GVE XXX
A176: N | B176: 010009 | C176: 0 | D176: 7 | E176: COORDENADORIA DE CONTROLE DE DOENCAS | F176: 107 | G176: CENTRO DE VIGILANCIA SANITARIA | H176: 72835 | I176: EMILIA MARCONDES TAVEIRA | J176: 04073-AGENTE TECNICO DE SAUDE | K176: GR.VIG.SANIT.SOROCABA-GVS-XXXI
A177: N | B177: 012007 | C177: 20 | D177: 7 | E177: COORDENADORIA DE CONTROLE DE DOENCAS | F177: 107 | G177: CENTRO DE VIGILANCIA SANITARIA | H177: 72835 | I177: EMILIA MARCONDES TAVEIRA | J177: 04073-AGENTE TECNICO DE SAUDE | K177: GR.VIG.SANIT.SOROCABA-GVS-XXXI
A178: N | B178: 010009 | C178: 0 | D178: 7 | E178: COORDENADORIA DE CONTROLE DE DOENCAS | F178: 107 | G178: CENTRO DE VIGILANCIA SANITARIA | H178: 73962 | I178: CAROLINA MARIA LOPES | J178: 04073-AGENTE TECNICO DE SAUDE | K178: SUBGR.V.SAN.M.CRUZES-SGVS-VIII
A179: N | B179: 012007 | C179: 20 | D179: 7 | E179: COORDENADORIA DE CONTROLE DE DOENCAS | F179: 107 | G179: CENTRO DE VIGILANCIA SANITARIA | H179: 73962 | I179: CAROLINA MARIA LOPES | J179: 04073-AGENTE TECNICO DE SAUDE | K179: SUBGR.V.SAN.M.CRUZES-SGVS-VIII
A180: N | B180: 010009 | C180: 0 | D180: 7 | E180: COORDENADORIA DE CONTROLE DE DOENCAS | F180: 194 | G180: C.VIGIL.EPIDEMIOLOGICA "PROF.ALEXANDRE V | H180: 71011 | I180: NEUSA CHINEN OKANO | J180: 05526-MEDICO III | K180: GVE - SANTO ANDRE - GVE VII
A181: N | B181: 012007 | C181: 20 | D181: 7 | E181: COORDENADORIA DE CONTROLE DE DOENCAS | F181: 194 | G181: C.VIGIL.EPIDEMIOLOGICA "PROF.ALEXANDRE V | H181: 71011 | I181: NEUSA CHINEN OKANO | J181: 05526-MEDICO III | K181: GVE - SANTO ANDRE - GVE VII
A182: N | B182: 010009 | C182: 0 | D182: 7 | E182: COORDENADORIA DE CONTROLE DE DOENCAS | F182: 194 | G182: C.VIGIL.EPIDEMIOLOGICA "PROF.ALEXANDRE V | H182: 3921 | I182: ANA CAROLINA C E CAMARGO | J182: 05413-AG.TEC. DE ASSIST. A SAUDE | K182: G.V.E.-PIRACICABA-GVE XX
A183: N | B183: 012007 | C183: 20 | D183: 7 | E183: COORDENADORIA DE CONTROLE DE DOENCAS | F183: 194 | G183: C.VIGIL.EPIDEMIOLOGICA "PROF.ALEXANDRE V | H183: 3921 | I183: ANA CAROLINA C E CAMARGO | J183: 05413-AG.TEC. DE ASSIST. A SAUDE | K183: G.V.E.-PIRACICABA-GVE XX
A184: N | B184: 012007 | C184: 20 | D184: 7 | E184: COORDENADORIA DE CONTROLE DE DOENCAS | F184: 193 | G184: GRUPO DE GERENCIAMENTO ADMINISTRATIVO | H184: 30846 | I184: SANDRA REGINA BELLUOMINE | J184: 04349-OFICIAL ADMINISTRATIVO | K184: N.AP.OP.REG-NAOR-OSASCO
A185: N | B185: 012007 | C185: 20 | D185: 7 | E185: COORDENADORIA DE CONTROLE DE DOENCAS | F185: 107 | G185: CENTRO DE VIGILANCIA SANITARIA | H185: 72835 | I185: CELSO SINHITSI TINEN | J185: 07847-ENGENHEIRO VI | K185: GR.VIG.SANIT.SOROCABA-GVS-XXXI
A186: N | B186: 012007 | C186: 40 | D186: 7 | E186: COORDENADORIA DE CONTROLE DE DOENCAS | F186: 2 | G186: INSTITUTO ADOLFO LUTZ | H186: 6921 | I186: CARLOS AILTON TOBIAS | J186: 07847-ENGENHEIRO VI | K186: INSTITUTO ADOLFO LUTZ
A187: N | B187: 010009 | C187: 0 | D187: 7 | E187: COORDENADORIA DE CONTROLE DE DOENCAS | F187: 2 | G187: INSTITUTO ADOLFO LUTZ | H187: 69496 | I187: ELOISA MARQUES | J187: 04349-OFICIAL ADMINISTRATIVO | K187: CEN. LABOR. REG. DE RIO CLARO
A188: N | B188: 012007 | C188: 20 | D188: 7 | E188: COORDENADORIA DE CONTROLE DE DOENCAS | F188: 2 | G188: INSTITUTO ADOLFO LUTZ | H188: 69496 | I188: ELOISA MARQUES | J188: 04349-OFICIAL ADMINISTRATIVO | K188: CEN. LABOR. REG. DE RIO CLARO
A189: N | B189: 010009 | C189: 0 | D189: 7 | E189: COORDENADORIA DE CONTROLE DE DOENCAS | F189: 107 | G189: CENTRO DE VIGILANCIA SANITARIA | H189: 73962 | I189: SANDRA REGINA P ARRUDA | J189: 07852-ARQUITETO V | K189: SUBGR.V.SAN.M.CRUZES-SGVS-VIII
A190: N | B190: 012007 | C190: 20 | D190: 7 | E190: COORDENADORIA DE CONTROLE DE DOENCAS | F190: 107 | G190: CENTRO DE VIGILANCIA SANITARIA | H190: 73962 | I190: SANDRA REGINA P ARRUDA | J190: 07852-ARQUITETO V | K190: SUBGR.V.SAN.M.CRUZES-SGVS-VIII
A191: N | B191: 010009 | C191: 0 | D191: 7 | E191: COORDENADORIA DE CONTROLE DE DOENCAS | F191: 2 | G191: INSTITUTO ADOLFO LUTZ | H191: 7033 | I191: SELMA LEIDE FONSECA DE PAULA | J191: 04078-AUXILIAR DE LABORATORIO | K191: CLR - IAL DE TAUBATE
A192: N | B192: 012007 | C192: 40 | D192: 7 | E192: COORDENADORIA DE CONTROLE DE DOENCAS | F192: 2 | G192: INSTITUTO ADOLFO LUTZ | H192: 7033 | I192: SELMA LEIDE FONSECA DE PAULA | J192: 04078-AUXILIAR DE LABORATORIO | K192: CLR - IAL DE TAUBATE
A193: N | B193: 012007 | C193: 40 | D193: 7 | E193: COORDENADORIA DE CONTROLE DE DOENCAS | F193: 194 | G193: C.VIGIL.EPIDEMIOLOGICA "PROF.ALEXANDRE V | H193: 71024 | I193: DAIR DE ALMEIDA | J193: 05413-AG.TEC. DE ASSIST. A SAUDE | K193: GVE-REGISTRO-GVE-XXIII
A194: N | B194: 010009 | C194: 0 | D194: 7 | E194: COORDENADORIA DE CONTROLE DE DOENCAS | F194: 107 | G194: CENTRO DE VIGILANCIA SANITARIA | H194: 72588 | I194: HENRIQUE LUNETTA JUNIOR | J194: 07847-ENGENHEIRO VI | K194: GR.VIG.SANIT.PIRACICABA-GVS-XX
A195: N | B195: 012007 | C195: 40 | D195: 7 | E195: COORDENADORIA DE CONTROLE DE DOENCAS | F195: 107 | G195: CENTRO DE VIGILANCIA SANITARIA | H195: 72588 | I195: HENRIQUE LUNETTA JUNIOR | J195: 07847-ENGENHEIRO VI | K195: GR.VIG.SANIT.PIRACICABA-GVS-XX
A196: N | B196: 010009 | C196: 0 | D196: 7 | E196: COORDENADORIA DE CONTROLE DE DOENCAS | F196: 107 | G196: CENTRO DE VIGILANCIA SANITARIA | H196: 73730 | I196: FATIMA BERTACHINI | J196: 05413-AG.TEC. DE ASSIST. A SAUDE | K196: GR.VIG.SANITARIA OSASCO-GVS-X
A197: N | B197: 012007 | C197: 20 | D197: 7 | E197: COORDENADORIA DE CONTROLE DE DOENCAS | F197: 107 | G197: CENTRO DE VIGILANCIA SANITARIA | H197: 73730 | I197: FATIMA BERTACHINI | J197: 05413-AG.TEC. DE ASSIST. A SAUDE | K197: GR.VIG.SANITARIA OSASCO-GVS-X
A198: N | B198: 012007 | C198: 20 | D198: 7 | E198: COORDENADORIA DE CONTROLE DE DOENCAS | F198: 2 | G198: INSTITUTO ADOLFO LUTZ | H198: 7101 | I198: DELMA APARECIDA M MARTINS | J198: 04071-TECNICO DE LABORATORIO | K198: CLR - IAL DE SANTO ANDRE
A199: N | B199: 010009 | C199: 0 | D199: 7 | E199: COORDENADORIA DE CONTROLE DE DOENCAS | F199: 107 | G199: CENTRO DE VIGILANCIA SANITARIA | H199: 74025 | I199: ELAINE APARECIDA A CLARO | J199: 05413-AG.TEC. DE ASSIST. A SAUDE | K199: G.VIGILANCIA SANITARIA CAPITAL
A200: N | B200: 012007 | C200: 20 | D200: 7 | E200: COORDENADORIA DE CONTROLE DE DOENCAS | F200: 107 | G200: CENTRO DE VIGILANCIA SANITARIA | H200: 74025 | I200: ELAINE APARECIDA A CLARO | J200: 05413-AG.TEC. DE ASSIST. A SAUDE | K200: G.VIGILANCIA SANITARIA CAPITAL
A201: N | B201: 010009 | C201: 0 | D201: 7 | E201: COORDENADORIA DE CONTROLE DE DOENCAS | F201: 194 | G201: C.VIGIL.EPIDEMIOLOGICA "PROF.ALEXANDRE V | H201: 70993 | I201: EMILIO DE HARO MUNOZ | J201: 05526-MEDICO III | K201: C.V.EPID.PRF.ALEXANDRE VRANJAC
A202: N | B202: 012007 | C202: 40 | D202: 7 | E202: COORDENADORIA DE CONTROLE DE DOENCAS | F202: 194 | G202: C.VIGIL.EPIDEMIOLOGICA "PROF.ALEXANDRE V | H202: 70993 | I202: EMILIO DE HARO MUNOZ | J202: 05526-MEDICO III | K202: C.V.EPID.PRF.ALEXANDRE VRANJAC
... 2048 more rows

Sheet RELAÇÃO SERVIDORES ESTATUTARIOS
A1: RELAÇÃO DE SERVIDORES ESTATUTARIOS
A8: UO | B8: UD | C8: LOTACAO | D8: NOME | E8: CARGO
A9: ADMINISTRACAO SUPERIOR SECRETARIA SEDE | B9: GABINETE SECRETARIO ASSESSORIAS | C9: GABIN.SECRETARIO ASSESSORIAS | D9: ADALBERTO ANTUNES DA SILVA | E9: ASSESSOR TECNICO II
A10: ADMINISTRACAO SUPERIOR SECRETARIA SEDE | B10: COORDENADORIA GERAL DE ADMINISTRACAO CGA | C10: COORD.GERAL ADMINISTRACAO CGA | D10: ADRIANA AUGUSTA DA COSTA | E10: AG.TEC. DE ASSIST. A SAUDE
A11: ADMINISTRACAO SUPERIOR SECRETARIA SEDE | B11: COORDENADORIA GERAL DE ADMINISTRACAO CGA | C11: COORD.GERAL ADMINISTRACAO CGA | D11: ADRIANA AUGUSTA DA COSTA | E11: AG.TEC. DE ASSIST. A SAUDE
A12: ADMINISTRACAO SUPERIOR SECRETARIA SEDE | B12: COORDENADORIA DE RECURSOS HUMANOS-CRH | C12: NUCL.FREQU.EXPEDIENTE PESSOAL | D12: AGNES DE PAULA | E12: OFICIAL ADMINISTRATIVO
A13: ADMINISTRACAO SUPERIOR SECRETARIA SEDE | B13: COORDENADORIA DE RECURSOS HUMANOS-CRH | C13: NUCL.FREQU.EXPEDIENTE PESSOAL | D13: ALBA PEREIRA FARIAS | E13: OFICIAL ADMINISTRATIVO
A14: ADMINISTRACAO SUPERIOR SECRETARIA SEDE | B14: COORDENADORIA GERAL DE ADMINISTRACAO CGA | C14: CENTRO DE TRANSPORTES | D14: ALCEBIADES CARLOS DA SILVA | E14: AUXILIAR SERV.GERAIS
A15: ADMINISTRACAO SUPERIOR SECRETARIA SEDE | B15: COORDENADORIA DE RECURSOS HUMANOS-CRH | C15: NUCL.FREQU.EXPEDIENTE PESSOAL | D15: ALEXANDRA RODRIGUES DE LIMA | E15: OFICIAL ADMINISTRATIVO
A16: ADMINISTRACAO SUPERIOR SECRETARIA SEDE | B16: GABINETE SECRETARIO ASSESSORIAS | C16: GABIN.SECRETARIO ASSESSORIAS | D16: ANA MARIA JUSTINO DOS SANTOS | E16: OFICIAL ADMINISTRATIVO
A17: ADMINISTRACAO SUPERIOR SECRETARIA SEDE | B17: GABINETE SECRETARIO ASSESSORIAS | C17: GABIN.SECRETARIO ASSESSORIAS | D17: ANTONIA DE PAULA SANTOS | E17: AUXILIAR SERV.GERAIS
A18: ADMINISTRACAO SUPERIOR SECRETARIA SEDE | B18: COORDENADORIA DE RECURSOS HUMANOS-CRH | C18: NUCL.FREQU.EXPEDIENTE PESSOAL | D18: ANTONIO CARLOS KOBAL ROMEU | E18: ASSESSOR I
A19: ADMINISTRACAO SUPERIOR SECRETARIA SEDE | B19: COORDENADORIA GERAL DE ADMINISTRACAO CGA | C19: CENTRO DE TRANSPORTES | D19: ANTONIO EUSTAQUIO CONDE | E19: DIRETOR I
A20: ADMINISTRACAO SUPERIOR SECRETARIA SEDE | B20: COORDENADORIA DE RECURSOS HUMANOS-CRH | C20: NUCL.FREQU.EXPEDIENTE PESSOAL | D20: AROLDO LEANDRO BARROS | E20: AUXILIAR SERV.GERAIS
A21: ADMINISTRACAO SUPERIOR SECRETARIA SEDE | B21: COORDENADORIA GERAL DE ADMINISTRACAO CGA | C21: CENTRO DE TRANSPORTES | D21: AUGUSTO SIMAO FILHO | E21: OFICIAL OPERACIONAL
A22: ADMINISTRACAO SUPERIOR SECRETARIA SEDE | B22: GABINETE SECRETARIO ASSESSORIAS | C22: GABIN.SECRETARIO ASSESSORIAS | D22: BENEDITO BORGES DA SILVA | E22: ASSESSOR DE GABINETE I
A23: ADMINISTRACAO SUPERIOR SECRETARIA SEDE | B23: COORDENADORIA GERAL DE ADMINISTRACAO CGA | C23: COORD.GERAL ADMINISTRACAO CGA | D23: CARLOS BERTAO DE SOUZA | E23: AUXILIAR SERV.GERAIS
A24: ADMINISTRACAO SUPERIOR SECRETARIA SEDE | B24: COORDENADORIA DE PLANEJAMENTO DE SAUDE | C24: COORD.PLANEJAMENTO SAUDE-CPS | D24: CESAR AUGUSTO DE ARAUJO CORREA | E24: OFICIAL ADMINISTRATIVO
A25: ADMINISTRACAO SUPERIOR SECRETARIA SEDE | B25: COORDENADORIA DE RECURSOS HUMANOS-CRH | C25: NUCL.FREQU.EXPEDIENTE PESSOAL | D25: CLAUDETE BORELLI DE ABREU | E25: OFICIAL ADMINISTRATIVO
A26: ADMINISTRACAO SUPERIOR SECRETARIA SEDE | B26: COORDENADORIA DE RECURSOS HUMANOS-CRH | C26: NUCL.FREQU.EXPEDIENTE PESSOAL | D26: CLAUDIA ANTONIETA RODRIGUES | E26: OFICIAL ADMINISTRATIVO
A27: ADMINISTRACAO SUPERIOR SECRETARIA SEDE | B27: COORDENADORIA GERAL DE ADMINISTRACAO CGA | C27: CENTRO DE TRANSPORTES | D27: CLAUDIA CRISTINA M PINHEIRO | E27: OFICIAL OPERACIONAL
A28: ADMINISTRACAO SUPERIOR SECRETARIA SEDE | B28: COORDENADORIA DE RECURSOS HUMANOS-CRH | C28: NUCL.FREQU.EXPEDIENTE PESSOAL | D28: CLAUDIA RODRIGUES DA COSTA | E28: OFICIAL ADMINISTRATIVO
A29: ADMINISTRACAO SUPERIOR SECRETARIA SEDE | B29: COORDENADORIA DE RECURSOS HUMANOS-CRH | C29: NUCL.FREQU.EXPEDIENTE PESSOAL | D29: CLAUDIO INGARANO ANDRIOSA | E29: ANALISTA ADMINISTRATIVO
A30: ADMINISTRACAO SUPERIOR SECRETARIA SEDE | B30: COORDENADORIA GERAL DE ADMINISTRACAO CGA | C30: CENTRO DE TRANSPORTES | D30: CLAUDIO NEY AUGUSTO | E30: OFICIAL OPERACIONAL
A31: ADMINISTRACAO SUPERIOR SECRETARIA SEDE | B31: COORDENADORIA GERAL DE ADMINISTRACAO CGA | C31: COORD.GERAL ADMINISTRACAO CGA | D31: CLEUSA DO NASCIMENTO | E31: AUXILIAR SERV.GERAIS
A32: ADMINISTRACAO SUPERIOR SECRETARIA SEDE | B32: GABINETE SECRETARIO ASSESSORIAS | C32: GABIN.SECRETARIO ASSESSORIAS | D32: CLEUZA BASILIO | E32: AUXILIAR SERV.GERAIS
A33: ADMINISTRACAO SUPERIOR SECRETARIA SEDE | B33: COORDENADORIA GERAL DE ADMINISTRACAO CGA | C33: COORD.GERAL ADMINISTRACAO CGA | D33: CLIVANIR DA SILVA SANTOS | E33: AUXILIAR SERV.GERAIS
A34: ADMINISTRACAO SUPERIOR SECRETARIA SEDE | B34: COORDENADORIA GERAL DE ADMINISTRACAO CGA | C34: COORD.GERAL ADMINISTRACAO CGA | D34: CRISTIANE DOS REIS VALIO | E34: AUXILIAR SERV.GERAIS
A35: ADMINISTRACAO SUPERIOR SECRETARIA SEDE | B35: COORDENADORIA DE RECURSOS HUMANOS-CRH | C35: NUCL.FREQU.EXPEDIENTE PESSOAL | D35: DENISE BRANDAO | E35: OFICIAL ADMINISTRATIVO
A36: ADMINISTRACAO SUPERIOR SECRETARIA SEDE | B36: COORDENADORIA GERAL DE ADMINISTRACAO CGA | C36: CENTRO DE TRANSPORTES | D36: DEVANIR DE SOUZA BORGES | E36: OFICIAL OPERACIONAL
A37: ADMINISTRACAO SUPERIOR SECRETARIA SEDE | B37: COORDENADORIA GERAL DE ADMINISTRACAO CGA | C37: COORD.GERAL ADMINISTRACAO CGA | D37: DIONISIO ALVES BERNARDES | E37: AUXILIAR SERV.GERAIS
A38: ADMINISTRACAO SUPERIOR SECRETARIA SEDE | B38: COORDENADORIA DE RECURSOS HUMANOS-CRH | C38: NUCL.FREQU.EXPEDIENTE PESSOAL | D38: DIVA MITIE SHINODA AOKI | E38: ASSESSOR TEC.SAUDE PUBLICA II
A39: ADMINISTRACAO SUPERIOR SECRETARIA SEDE | B39: COORDENADORIA DE RECURSOS HUMANOS-CRH | C39: NUCL.FREQU.EXPEDIENTE PESSOAL | D39: EDER JOSE MICHELUTTI | E39: OFICIAL OPERACIONAL
A40: ADMINISTRACAO SUPERIOR SECRETARIA SEDE | B40: COORDENADORIA GERAL DE ADMINISTRACAO CGA | C40: COORD.GERAL ADMINISTRACAO CGA | D40: EDILENE DIAS GOMES | E40: DIRETOR I
A41: ADMINISTRACAO SUPERIOR SECRETARIA SEDE | B41: COORDENADORIA GERAL DE ADMINISTRACAO CGA | C41: COORD.GERAL ADMINISTRACAO CGA | D41: EDISON RAMOS | E41: OFICIAL ADMINISTRATIVO
A42: ADMINISTRACAO SUPERIOR SECRETARIA SEDE | B42: COORDENADORIA GERAL DE ADMINISTRACAO CGA | C42: COORD.GERAL ADMINISTRACAO CGA | D42: EDNALDO DA SILVA | E42: OFICIAL ADMINISTRATIVO
A43: ADMINISTRACAO SUPERIOR SECRETARIA SEDE | B43: COORDENADORIA GERAL DE ADMINISTRACAO CGA | C43: CENTRO DE TRANSPORTES | D43: EDSON MORAES DE OLIVEIRA | E43: OFICIAL OPERACIONAL
A44: ADMINISTRACAO SUPERIOR SECRETARIA SEDE | B44: GABINETE SECRETARIO ASSESSORIAS | C44: GABIN.SECRETARIO ASSESSORIAS | D44: ELIENE MARTINS AZEVEDO ALVES | E44: AG.TEC. DE ASSIST. A SAUDE
A45: ADMINISTRACAO SUPERIOR SECRETARIA SEDE | B45: COORDENADORIA DE RECURSOS HUMANOS-CRH | C45: NUCL.FREQU.EXPEDIENTE PESSOAL | D45: ELISABETE CRISTINA DOS SANTOS | E45: OFICIAL ADMINISTRATIVO
A46: ADMINISTRACAO SUPERIOR SECRETARIA SEDE | B46: GABINETE SECRETARIO ASSESSORIAS | C46: GABIN.SECRETARIO ASSESSORIAS | D46: ELZA MARIA DA SILVA | E46: OFICIAL ADMINISTRATIVO
A47: ADMINISTRACAO SUPERIOR SECRETARIA SEDE | B47: COORDENADORIA GERAL DE ADMINISTRACAO CGA | C47: COORD.GERAL ADMINISTRACAO CGA | D47: ENIR GUEDES CARA GUIMARAES | E47: AUXILIAR SERV.GERAIS
A48: ADMINISTRACAO SUPERIOR SECRETARIA SEDE | B48: COORDENADORIA GERAL DE ADMINISTRACAO CGA | C48: COORD.GERAL ADMINISTRACAO CGA | D48: ERINALVA VIEIRA RIBEIRO SANTOS | E48: OFICIAL OPERACIONAL
A49: ADMINISTRACAO SUPERIOR SECRETARIA SEDE | B49: COORDENADORIA GERAL DE ADMINISTRACAO CGA | C49: COORD.GERAL ADMINISTRACAO CGA | D49: EUCLIDES MESSIAS ALVES | E49: ASSESSOR I
A50: ADMINISTRACAO SUPERIOR SECRETARIA SEDE | B50: COORDENADORIA DE RECURSOS HUMANOS-CRH | C50: NUCL.FREQU.EXPEDIENTE PESSOAL | D50: GERALDO S M GRANATA JUNIOR | E50: MEDICO II
A51: ADMINISTRACAO SUPERIOR SECRETARIA SEDE | B51: COORDENADORIA GERAL DE ADMINISTRACAO CGA | C51: CENTRO DE TRANSPORTES | D51: GERSON BENEDITO NUNES | E51: OFICIAL OPERACIONAL
A52: ADMINISTRACAO SUPERIOR SECRETARIA SEDE | B52: COORDENADORIA GERAL DE ADMINISTRACAO CGA | C52: COORD.GERAL ADMINISTRACAO CGA | D52: GILMAR MARTINS | E52: OFICIAL OPERACIONAL
A53: ADMINISTRACAO SUPERIOR SECRETARIA SEDE | B53: COORDENADORIA GERAL DE ADMINISTRACAO CGA | C53: COORD.GERAL ADMINISTRACAO CGA | D53: GISELE ROBERTA DE OLIVEIRA | E53: AUXILIAR SERV.GERAIS
A54: ADMINISTRACAO SUPERIOR SECRETARIA SEDE | B54: COORDENADORIA GERAL DE ADMINISTRACAO CGA | C54: COORD.GERAL ADMINISTRACAO CGA | D54: GISLEINE GAMBERA DE BRITO | E54: AUXILIAR SERV.GERAIS
A55: ADMINISTRACAO SUPERIOR SECRETARIA SEDE | B55: GABINETE SECRETARIO ASSESSORIAS | C55: GABIN.SECRETARIO ASSESSORIAS | D55: GIULIANNA APARECIDA A DIAS | E55: AG.TEC. DE ASSIST. A SAUDE
A56: ADMINISTRACAO SUPERIOR SECRETARIA SEDE | B56: COORDENADORIA GERAL DE ADMINISTRACAO CGA | C56: CENTRO DE TRANSPORTES | D56: HAMILTON MACIEL | E56: OFICIAL OPERACIONAL
A57: ADMINISTRACAO SUPERIOR SECRETARIA SEDE | B57: COORDENADORIA DE RECURSOS HUMANOS-CRH | C57: NUCL.FREQU.EXPEDIENTE PESSOAL | D57: HELIO TARRICONE ARBULU | E57: MEDICO III
A58: ADMINISTRACAO SUPERIOR SECRETARIA SEDE | B58: COORDENADORIA GERAL DE ADMINISTRACAO CGA | C58: COORD.GERAL ADMINISTRACAO CGA | D58: ISILDINHA MARIA DE M BETTONI | E58: DIRETOR I
A59: ADMINISTRACAO SUPERIOR SECRETARIA SEDE | B59: COORDENADORIA GERAL DE ADMINISTRACAO CGA | C59: COORD.GERAL ADMINISTRACAO CGA | D59: ISMAEL SABINO DA COSTA PEREIRA | E59: ENGENHEIRO VI
A60: ADMINISTRACAO SUPERIOR SECRETARIA SEDE | B60: COORDENADORIA GERAL DE ADMINISTRACAO CGA | C60: COORD.GERAL ADMINISTRACAO CGA | D60: IVANI SANTANA DAS NEVES | E60: OFICIAL ADMINISTRATIVO
A61: ADMINISTRACAO SUPERIOR SECRETARIA SEDE | B61: GABINETE SECRETARIO ASSESSORIAS | C61: UNIDADE EXPERIMENTAL DE SAUDE | D61: IVIS BERTIN | E61: DIRETOR TECNICO DE SAUDE II
A62: ADMINISTRACAO SUPERIOR SECRETARIA SEDE | B62: GABINETE SECRETARIO ASSESSORIAS | C62: GABIN.SECRETARIO ASSESSORIAS | D62: JEANE NEVES DE SOUZA | E62: ASSESSOR TECNICO II
A63: ADMINISTRACAO SUPERIOR SECRETARIA SEDE | B63: COORDENADORIA DE RECURSOS HUMANOS-CRH | C63: NUCL.FREQU.EXPEDIENTE PESSOAL | D63: JOAO CARLOS VIEIRA C SANTOS | E63: ANALISTA ADMINISTRATIVO
A64: ADMINISTRACAO SUPERIOR SECRETARIA SEDE | B64: COORDENADORIA GERAL DE ADMINISTRACAO CGA | C64: CENTRO DE TRANSPORTES | D64: JOAO EUDES FERREIRA FILHO | E64: OFICIAL OPERACIONAL
A65: ADMINISTRACAO SUPERIOR SECRETARIA SEDE | B65: COORDENADORIA DE RECURSOS HUMANOS-CRH | C65: NUCL.FREQU.EXPEDIENTE PESSOAL | D65: JOAQUIM JOSE DA GLORIA JUNIOR | E65: MEDICO III
A66: ADMINISTRACAO SUPERIOR SECRETARIA SEDE | B66: GABINETE SECRETARIO ASSESSORIAS | C66: UNIDADE EXPERIMENTAL DE SAUDE | D66: JOSE ANTONIO ALEGRE | E66: AUXILIAR DE SAUDE
A67: ADMINISTRACAO SUPERIOR SECRETARIA SEDE | B67: COORDENADORIA DE RECURSOS HUMANOS-CRH | C67: NUCL.FREQU.EXPEDIENTE PESSOAL | D67: JOSE BEZERRA DE SOUZA NETO | E67: OFICIAL OPERACIONAL
A68: ADMINISTRACAO SUPERIOR SECRETARIA SEDE | B68: COORDENADORIA GERAL DE ADMINISTRACAO CGA | C68: CENTRO DE TRANSPORTES | D68: JOSE CARLOS VIEIRA | E68: OFICIAL OPERACIONAL
A69: ADMINISTRACAO SUPERIOR SECRETARIA SEDE | B69: COORDENADORIA DE RECURSOS HUMANOS-CRH | C69: NUCL.FREQU.EXPEDIENTE PESSOAL | D69: JOSE EDUARDO EGIDIO | E69: OFICIAL ADMINISTRATIVO
A70: ADMINISTRACAO SUPERIOR SECRETARIA SEDE | B70: COORDENADORIA GERAL DE ADMINISTRACAO CGA | C70: COORD.GERAL ADMINISTRACAO CGA | D70: JOSE FERNANDES DE ANDRADE | E70: OFICIAL OPERACIONAL
A71: ADMINISTRACAO SUPERIOR SECRETARIA SEDE | B71: GABINETE SECRETARIO ASSESSORIAS | C71: GABIN.SECRETARIO ASSESSORIAS | D71: JOSE FERNANDO DA SILVA | E71: AUXILIAR SERV.GERAIS
A72: ADMINISTRACAO SUPERIOR SECRETARIA SEDE | B72: COORDENADORIA GERAL DE ADMINISTRACAO CGA | C72: COORD.GERAL ADMINISTRACAO CGA | D72: JOSE MARCELLINO SANTOS FILHO | E72: AUXILIAR SERV.GERAIS
A73: ADMINISTRACAO SUPERIOR SECRETARIA SEDE | B73: COORDENADORIA GERAL DE ADMINISTRACAO CGA | C73: COORD.GERAL ADMINISTRACAO CGA | D73: JULIO CARLOS FRANCISCO | E73: AUXILIAR SERV.GERAIS
A74: ADMINISTRACAO SUPERIOR SECRETARIA SEDE | B74: COORDENADORIA GERAL DE ADMINISTRACAO CGA | C74: COORD.GERAL ADMINISTRACAO CGA | D74: LAIS APARECIDO PAULINO | E74: AUXILIAR SERV.GERAIS
A75: ADMINISTRACAO SUPERIOR SECRETARIA SEDE | B75: COORDENADORIA DE RECURSOS HUMANOS-CRH | C75: NUCL.FREQU.EXPEDIENTE PESSOAL | D75: LEIA BORGES DA CUNHA GIORGETTI | E75: OFICIAL ADMINISTRATIVO
A76: ADMINISTRACAO SUPERIOR SECRETARIA SEDE | B76: COORDENADORIA DE RECURSOS HUMANOS-CRH | C76: NUCL.FREQU.EXPEDIENTE PESSOAL | D76: LETICIA APARECIDA PEREIRA | E76: OFICIAL ADMINISTRATIVO
A77: ADMINISTRACAO SUPERIOR SECRETARIA SEDE | B77: COORDENADORIA GERAL DE ADMINISTRACAO CGA | C77: COORD.GERAL ADMINISTRACAO CGA | D77: LIGIA LEITE DE OLIVEIRA | E77: AUXILIAR SERV.GERAIS
A78: ADMINISTRACAO SUPERIOR SECRETARIA SEDE | B78: COORDENADORIA GERAL DE ADMINISTRACAO CGA | C78: CENTRO DE TRANSPORTES | D78: LUCIA PEREIRA MEDEIROS | E78: AUXILIAR SERV.GERAIS
A79: ADMINISTRACAO SUPERIOR SECRETARIA SEDE | B79: GABINETE SECRETARIO ASSESSORIAS | C79: GABIN.SECRETARIO ASSESSORIAS | D79: LUCIANA CRISTINA DE OLIVEIRA | E79: AUXILIAR SERV.GERAIS
A80: ADMINISTRACAO SUPERIOR SECRETARIA SEDE | B80: COORDENADORIA GERAL DE ADMINISTRACAO CGA | C80: COORD.GERAL ADMINISTRACAO CGA | D80: LUCIMARA ALVES DOS SANTOS | E80: DIRETOR I
A81: ADMINISTRACAO SUPERIOR SECRETARIA SEDE | B81: COORDENADORIA DE RECURSOS HUMANOS-CRH | C81: NUCL.FREQU.EXPEDIENTE PESSOAL | D81: LUIS FERNANDO DA SILVA ROSA | E81: OFICIAL ADMINISTRATIVO
A82: ADMINISTRACAO SUPERIOR SECRETARIA SEDE | B82: COORDENADORIA GERAL DE ADMINISTRACAO CGA | C82: CENTRO DE TRANSPORTES | D82: LUIZ ANTONIO F DE OLIVEIRA | E82: OFICIAL OPERACIONAL
A83: ADMINISTRACAO SUPERIOR SECRETARIA SEDE | B83: COORDENADORIA DE PLANEJAMENTO DE SAUDE | C83: GRUPO INFORMACOES SAUDE CPS | D83: LUIZIANE MARIA DE F RODRIGUES | E83: DIRETOR TECNICO DE SAUDE I
A84: ADMINISTRACAO SUPERIOR SECRETARIA SEDE | B84: COORDENADORIA DE RECURSOS HUMANOS-CRH | C84: NUCL.FREQU.EXPEDIENTE PESSOAL | D84: MARCIA LUIZA DE CASTRO REGO | E84: OFICIAL ADMINISTRATIVO
A85: ADMINISTRACAO SUPERIOR SECRETARIA SEDE | B85: COORDENADORIA GERAL DE ADMINISTRACAO CGA | C85: COORD.GERAL ADMINISTRACAO CGA | D85: MARCO ANTONIO A ALIPIO | E85: OFICIAL ADMINISTRATIVO
A86: ADMINISTRACAO SUPERIOR SECRETARIA SEDE | B86: COORDENADORIA GERAL DE ADMINISTRACAO CGA | C86: CENTRO DE TRANSPORTES | D86: MARCOS RODRIGUES | E86: OFICIAL OPERACIONAL
A87: ADMINISTRACAO SUPERIOR SECRETARIA SEDE | B87: COORDENADORIA DE RECURSOS HUMANOS-CRH | C87: NUCL.FREQU.EXPEDIENTE PESSOAL | D87: MARIA APARECIDA DE CAMPOS | E87: OFICIAL ADMINISTRATIVO
A88: ADMINISTRACAO SUPERIOR SECRETARIA SEDE | B88: GABINETE SECRETARIO ASSESSORIAS | C88: GABIN.SECRETARIO ASSESSORIAS | D88: MARIA DE FATIMA COVRE | E88: OFICIAL ADMINISTRATIVO
A89: ADMINISTRACAO SUPERIOR SECRETARIA SEDE | B89: COORDENADORIA GERAL DE ADMINISTRACAO CGA | C89: COORD.GERAL ADMINISTRACAO CGA | D89: MARIA DO SOCORRO MARTINS VIANA | E89: OFICIAL ADMINISTRATIVO
A90: ADMINISTRACAO SUPERIOR SECRETARIA SEDE | B90: COORDENADORIA GERAL DE ADMINISTRACAO CGA | C90: COORD.GERAL ADMINISTRACAO CGA | D90: MARIA ELISA DOS SANTOS | E90: DIRETOR I
A91: ADMINISTRACAO SUPERIOR SECRETARIA SEDE | B91: COORDENADORIA DE RECURSOS HUMANOS-CRH | C91: NUCL.FREQU.EXPEDIENTE PESSOAL | D91: MARIA HELOISA DE MOURA | E91: OFICIAL ADMINISTRATIVO
A92: ADMINISTRACAO SUPERIOR SECRETARIA SEDE | B92: COORDENADORIA DE RECURSOS HUMANOS-CRH | C92: NUCL.FREQU.EXPEDIENTE PESSOAL | D92: MARIA JOSE COSTA FREIRE | E92: OFICIAL ADMINISTRATIVO
A93: ADMINISTRACAO SUPERIOR SECRETARIA SEDE | B93: GABINETE SECRETARIO ASSESSORIAS | C93: GABIN.SECRETARIO ASSESSORIAS | D93: MARIA SOLANGE BRAINER | E93: AG.TEC. DE ASSIST. A SAUDE
A94: ADMINISTRACAO SUPERIOR SECRETARIA SEDE | B94: COORDENADORIA DE RECURSOS HUMANOS-CRH | C94: NUCL.FREQU.EXPEDIENTE PESSOAL | D94: MARIA SONIA DA SILVA | E94: DIRETOR TECNICO III
A95: ADMINISTRACAO SUPERIOR SECRETARIA SEDE | B95: COORDENADORIA GERAL DE ADMINISTRACAO CGA | C95: COORD.GERAL ADMINISTRACAO CGA | D95: MARILDA PEREIRA OLEGARIA SILVA | E95: AUXILIAR SERV.GERAIS
A96: ADMINISTRACAO SUPERIOR SECRETARIA SEDE | B96: COORDENADORIA DE RECURSOS HUMANOS-CRH | C96: NUCL.FREQU.EXPEDIENTE PESSOAL | D96: MARILENE SILVA MOREIRA MATTOS | E96: OFICIAL ADMINISTRATIVO
A97: ADMINISTRACAO SUPERIOR SECRETARIA SEDE | B97: COORDENADORIA GERAL DE ADMINISTRACAO CGA | C97: COORD.GERAL ADMINISTRACAO CGA | D97: MARINES DE CAMPOS | E97: AUXILIAR SERV.GERAIS
A98: ADMINISTRACAO SUPERIOR SECRETARIA SEDE | B98: COORDENADORIA DE RECURSOS HUMANOS-CRH | C98: NUCL.FREQU.EXPEDIENTE PESSOAL | D98: MARISA REGINA SILVA DE LIMA | E98: OFICIAL ADMINISTRATIVO
A99: ADMINISTRACAO SUPERIOR SECRETARIA SEDE | B99: COORDENADORIA DE RECURSOS HUMANOS-CRH | C99: NUCL.FREQU.EXPEDIENTE PESSOAL | D99: MILTON MASSAYUKI OSAKI | E99: MEDICO I
A100: ADMINISTRACAO SUPERIOR SECRETARIA SEDE | B100: COORDENADORIA DE RECURSOS HUMANOS-CRH | C100: NUCL.FREQU.EXPEDIENTE PESSOAL | D100: NEIDE BENUTO | E100: DIRETOR TECNICO I
A101: ADMINISTRACAO SUPERIOR SECRETARIA SEDE | B101: GABINETE SECRETARIO ASSESSORIAS | C101: GABIN.SECRETARIO ASSESSORIAS | D101: NILTON F MATIAS DA SILVA | E101: ASSESSOR DE GABINETE I
A102: ADMINISTRACAO SUPERIOR SECRETARIA SEDE | B102: COORDENADORIA GERAL DE ADMINISTRACAO CGA | C102: COORD.GERAL ADMINISTRACAO CGA | D102: NILZA APARECIDA GALFI BAPTISTA | E102: OFICIAL ADMINISTRATIVO
A103: ADMINISTRACAO SUPERIOR SECRETARIA SEDE | B103: GABINETE SECRETARIO ASSESSORIAS | C103: UNIDADE EXPERIMENTAL DE SAUDE | D103: NIONE ELERATI COSTA PATRICIO | E103: DIRETOR I
A104: ADMINISTRACAO SUPERIOR SECRETARIA SEDE | B104: COORDENADORIA DE RECURSOS HUMANOS-CRH | C104: NUCL.FREQU.EXPEDIENTE PESSOAL | D104: NIVALDO DAMACENO TEIXEIRA | E104: EXECUTIVO PUBLICO
A105: ADMINISTRACAO SUPERIOR SECRETARIA SEDE | B105: GABINETE SECRETARIO ASSESSORIAS | C105: GABIN.SECRETARIO ASSESSORIAS | D105: NUBIA LEIA GABRIEL TEIXEIRA | E105: OFICIAL ADMINISTRATIVO
A106: ADMINISTRACAO SUPERIOR SECRETARIA SEDE | B106: COORDENADORIA DE RECURSOS HUMANOS-CRH | C106: NUCL.FREQU.EXPEDIENTE PESSOAL | D106: OSCAR FERREIRA BATISTA | E106: AUXILIAR SERV.GERAIS
A107: ADMINISTRACAO SUPERIOR SECRETARIA SEDE | B107: GABINETE SECRETARIO ASSESSORIAS | C107: GABIN.SECRETARIO ASSESSORIAS | D107: PAULO GAIA DA SILVA | E107: OFICIAL ADMINISTRATIVO
A108: ADMINISTRACAO SUPERIOR SECRETARIA SEDE | B108: COORDENADORIA DE RECURSOS HUMANOS-CRH | C108: NUCL.FREQU.EXPEDIENTE PESSOAL | D108: PAULO LEANDRO RAMOS | E108: DIRETOR I
A109: ADMINISTRACAO SUPERIOR SECRETARIA SEDE | B109: COORDENADORIA DE RECURSOS HUMANOS-CRH | C109: NUCL.FREQU.EXPEDIENTE PESSOAL | D109: RACHEL PAULA FERREIRA | E109: OFICIAL ADMINISTRATIVO
A110: ADMINISTRACAO SUPERIOR SECRETARIA SEDE | B110: COORDENADORIA GERAL DE ADMINISTRACAO CGA | C110: COORD.GERAL ADMINISTRACAO CGA | D110: RAFAEL LUZITANO DA SILVA | E110: AUXILIAR SERV.GERAIS
A111: ADMINISTRACAO SUPERIOR SECRETARIA SEDE | B111: COORDENADORIA DE RECURSOS HUMANOS-CRH | C111: NUCL.FREQU.EXPEDIENTE PESSOAL | D111: REGINA CELIA SILVA DECHIUCIO | E111: DIRETOR TECNICO II
A112: ADMINISTRACAO SUPERIOR SECRETARIA SEDE | B112: COORDENADORIA DE RECURSOS HUMANOS-CRH | C112: NUCL.FREQU.EXPEDIENTE PESSOAL | D112: ROSANA APARECIDA MORAES | E112: OFICIAL ADMINISTRATIVO
A113: ADMINISTRACAO SUPERIOR SECRETARIA SEDE | B113: COORDENADORIA DE RECURSOS HUMANOS-CRH | C113: NUCL.FREQU.EXPEDIENTE PESSOAL | D113: ROSANE BENEDITA C SANTOS | E113: CHEFE I
A114: ADMINISTRACAO SUPERIOR SECRETARIA SEDE | B114: COORDENADORIA DE RECURSOS HUMANOS-CRH | C114: NUCL.FREQU.EXPEDIENTE PESSOAL | D114: ROSELI MARCIA MARCIANO SANTOS | E114: OFICIAL ADMINISTRATIVO
A115: ADMINISTRACAO SUPERIOR SECRETARIA SEDE | B115: GABINETE SECRETARIO ASSESSORIAS | C115: GABIN.SECRETARIO ASSESSORIAS | D115: ROSEMAR SCOLA BENTO | E115: OFICIAL ADMINISTRATIVO
A116: ADMINISTRACAO SUPERIOR SECRETARIA SEDE | B116: COORDENADORIA DE RECURSOS HUMANOS-CRH | C116: NUCL.FREQU.EXPEDIENTE PESSOAL | D116: ROSEMARY DOMINGOS FURTADO | E116: OFICIAL ADMINISTRATIVO
A117: ADMINISTRACAO SUPERIOR SECRETARIA SEDE | B117: GABINETE SECRETARIO ASSESSORIAS | C117: GABIN.SECRETARIO ASSESSORIAS | D117: RUTE LEIA DO NASCIMENTO | E117: OFICIAL ADMINISTRATIVO
A118: ADMINISTRACAO SUPERIOR SECRETARIA SEDE | B118: COORDENADORIA GERAL DE ADMINISTRACAO CGA | C118: CENTRO DE TRANSPORTES | D118: SEBASTIAO ALVES DE OLIVEIRA | E118: AUXILIAR SERV.GERAIS
A119: ADMINISTRACAO SUPERIOR SECRETARIA SEDE | B119: COORDENADORIA GERAL DE ADMINISTRACAO CGA | C119: CENTRO DE TRANSPORTES | D119: SEBASTIAO DA CRUZ BAPTISTA | E119: OFICIAL OPERACIONAL
A120: ADMINISTRACAO SUPERIOR SECRETARIA SEDE | B120: COORDENADORIA DE RECURSOS HUMANOS-CRH | C120: NUCL.FREQU.EXPEDIENTE PESSOAL | D120: SERGIO DOS SANTOS | E120: OFICIAL ADMINISTRATIVO
A121: ADMINISTRACAO SUPERIOR SECRETARIA SEDE | B121: COORDENADORIA GERAL DE ADMINISTRACAO CGA | C121: COORD.GERAL ADMINISTRACAO CGA | D121: SILVANA MARIA DA SILVA SOUZA | E121: OFICIAL ADMINISTRATIVO
A122: ADMINISTRACAO SUPERIOR SECRETARIA SEDE | B122: COORDENADORIA DE RECURSOS HUMANOS-CRH | C122: NUCL.FREQU.EXPEDIENTE PESSOAL | D122: SONIA REGINA FERREIRA ALMEIDA | E122: OFICIAL ADMINISTRATIVO
A123: ADMINISTRACAO SUPERIOR SECRETARIA SEDE | B123: COORDENADORIA DE RECURSOS HUMANOS-CRH | C123: NUCL.FREQU.EXPEDIENTE PESSOAL | D123: SONIA REGINA ZEFERINO SANTOS | E123: EXECUTIVO PUBLICO
A124: ADMINISTRACAO SUPERIOR SECRETARIA SEDE | B124: COORDENADORIA GERAL DE ADMINISTRACAO CGA | C124: COORD.GERAL ADMINISTRACAO CGA | D124: SUELI DA COSTA | E124: AUXILIAR SERV.GERAIS
A125: ADMINISTRACAO SUPERIOR SECRETARIA SEDE | B125: COORDENADORIA DE RECURSOS HUMANOS-CRH | C125: NUCL.FREQU.EXPEDIENTE PESSOAL | D125: TADEUSA APARECIDA XAVIER | E125: OFICIAL ADMINISTRATIVO
A126: ADMINISTRACAO SUPERIOR SECRETARIA SEDE | B126: COORDENADORIA DE RECURSOS HUMANOS-CRH | C126: NUCL.FREQU.EXPEDIENTE PESSOAL | D126: TAMINI FARAH FADEL | E126: ASSESSOR TECNICO I
A127: ADMINISTRACAO SUPERIOR SECRETARIA SEDE | B127: GABINETE SECRETARIO ASSESSORIAS | C127: GABIN.SECRETARIO ASSESSORIAS | D127: TELMA MIRANDA ALMEIDA PIMENTA | E127: AUXILIAR SERV.GERAIS
A128: ADMINISTRACAO SUPERIOR SECRETARIA SEDE | B128: COORDENADORIA GERAL DE ADMINISTRACAO CGA | C128: COORD.GERAL ADMINISTRACAO CGA | D128: VALERIA ALVARES GOMES DA SILVA | E128: DIRETOR I
A129: ADMINISTRACAO SUPERIOR SECRETARIA SEDE | B129: COORDENADORIA GERAL DE ADMINISTRACAO CGA | C129: CENTRO DE TRANSPORTES | D129: WALTER MUZARDO | E129: OFICIAL OPERACIONAL
A130: ADMINISTRACAO SUPERIOR SECRETARIA SEDE | B130: COORDENADORIA DE RECURSOS HUMANOS-CRH | C130: NUCL.FREQU.EXPEDIENTE PESSOAL | D130: WESLEY DE SOUZA HENRIQUEZ | E130: OFICIAL ADMINISTRATIVO
A131: ADMINISTRACAO SUPERIOR SECRETARIA SEDE | B131: COORDENADORIA GERAL DE ADMINISTRACAO CGA | C131: CENTRO DE TRANSPORTES | D131: WILSON ANTONIO DOS SANTOS | E131: OFICIAL OPERACIONAL
A132: COORD.CIENCIA,TECN.INSUMOS ESTRAT.SAUDE | B132: INSTITUTO BUTANTAN | C132: INSTITUTO BUTANTAN | D132: ADAO GERALDO DE SOUZA PASSOS | E132: CHEFE I
A133: COORD.CIENCIA,TECN.INSUMOS ESTRAT.SAUDE | B133: INSTITUTO BUTANTAN | C133: INSTITUTO BUTANTAN | D133: ADELIA HIROKO N KAWAMOTO | E133: PESQUISADOR CIENTIFICO IV
A134: COORD.CIENCIA,TECN.INSUMOS ESTRAT.SAUDE | B134: INSTITUTO BUTANTAN | C134: INSTITUTO BUTANTAN | D134: ADMILSON APARECIDO DA CUNHA | E134: TECN.APOIO PESQ.CIENT.TECNOL.
A135: COORD.CIENCIA,TECN.INSUMOS ESTRAT.SAUDE | B135: INSTITUTO BUTANTAN | C135: INSTITUTO BUTANTAN | D135: ADRIAN HAND | E135: TECN.APOIO PESQ.CIENT.TECNOL.
A136: COORD.CIENCIA,TECN.INSUMOS ESTRAT.SAUDE | B136: INSTITUTO BUTANTAN | C136: INSTITUTO BUTANTAN | D136: ADRIANA APARECIDA C OLIVEIRA | E136: TECNICO DE ENFERMAGEM
A137: COORD.CIENCIA,TECN.INSUMOS ESTRAT.SAUDE | B137: INSTITUTO BUTANTAN | C137: INSTITUTO BUTANTAN | D137: ADRIANA DA COSTA NEVES | E137: PESQUISADOR CIENTIFICO V
A138: COORD.CIENCIA,TECN.INSUMOS ESTRAT.SAUDE | B138: INSTITUTO BUTANTAN | C138: INSTITUTO BUTANTAN | D138: ADRIANA RIOS LOPES ROCHA | E138: PESQUISADOR CIENTIFICO VI
A139: COORD.CIENCIA,TECN.INSUMOS ESTRAT.SAUDE | B139: INSTITUTO BUTANTAN | C139: INSTITUTO BUTANTAN | D139: ADRIANO TADEU FELLONE | E139: AG.APOIO PESQ.CIENT.TECNOL.
A140: COORD.CIENCIA,TECN.INSUMOS ESTRAT.SAUDE | B140: INSTITUTO BUTANTAN | C140: INSTITUTO BUTANTAN | D140: ALECIO BARBOSA RODRIGUES | E140: AG.APOIO PESQ.CIENT.TECNOL.
A141: COORD.CIENCIA,TECN.INSUMOS ESTRAT.SAUDE | B141: INSTITUTO BUTANTAN | C141: INSTITUTO BUTANTAN | D141: ALESSANDRA BENEDITA DA COSTA | E141: AUXILIAR SERV.GERAIS
A142: COORD.CIENCIA,TECN.INSUMOS ESTRAT.SAUDE | B142: INSTITUTO BUTANTAN | C142: INSTITUTO BUTANTAN | D142: ALEXANDRE JOSE MENDES | E142: AUXILIAR DE ENFERMAGEM
A143: COORD.CIENCIA,TECN.INSUMOS ESTRAT.SAUDE | B143: INSTITUTO BUTANTAN | C143: INSTITUTO BUTANTAN | D143: ALEXANDRE PAULO YAGUE LOPES | E143: PESQUISADOR CIENTIFICO V
A144: COORD.CIENCIA,TECN.INSUMOS ESTRAT.SAUDE | B144: INSTITUTO BUTANTAN | C144: INSTITUTO BUTANTAN | D144: ALEXANDRE PEREIRA | E144: PESQUISADOR CIENTIFICO V
A145: COORD.CIENCIA,TECN.INSUMOS ESTRAT.SAUDE | B145: INSTITUTO BUTANTAN | C145: INSTITUTO BUTANTAN | D145: ALEXANDRE VELOSO RIBEIRO | E145: OFICIAL AP.PESQ.CIENT.TECNOL.
A146: COORD.CIENCIA,TECN.INSUMOS ESTRAT.SAUDE | B146: INSTITUTO BUTANTAN | C146: INSTITUTO BUTANTAN | D146: ALICIO APARECIDO TOBIAS FILHO | E146: OFICIAL OPERACIONAL
A147: COORD.CIENCIA,TECN.INSUMOS ESTRAT.SAUDE | B147: INSTITUTO BUTANTAN | C147: INSTITUTO BUTANTAN | D147: ALINE ALVES DOS SANTOS | E147: AUXILIAR DE SAUDE
A148: COORD.CIENCIA,TECN.INSUMOS ESTRAT.SAUDE | B148: INSTITUTO BUTANTAN | C148: INSTITUTO BUTANTAN | D148: ALINE CUNHA BARBOSA | E148: TECN.APOIO PESQ.CIENT.TECNOL.
A149: COORD.CIENCIA,TECN.INSUMOS ESTRAT.SAUDE | B149: INSTITUTO BUTANTAN | C149: INSTITUTO BUTANTAN | D149: ALINE DIAS SABBATINI | E149: AUX.APOIO PESQ.CIENT.TECNOL.
A150: COORD.CIENCIA,TECN.INSUMOS ESTRAT.SAUDE | B150: INSTITUTO BUTANTAN | C150: INSTITUTO BUTANTAN | D150: ALINE MARQUES CAVALHER | E150: AG.APOIO PESQ.CIENT.TECNOL.
A151: COORD.CIENCIA,TECN.INSUMOS ESTRAT.SAUDE | B151: INSTITUTO BUTANTAN | C151: INSTITUTO BUTANTAN | D151: ALVARO ROSSAN BRANDAO P SILVA | E151: PESQUISADOR CIENTIFICO V
A152: COORD.CIENCIA,TECN.INSUMOS ESTRAT.SAUDE | B152: INSTITUTO DE SAUDE | C152: INSTITUTO DE SAUDE | D152: AMALIA SUZANA KALCKMANN | E152: PESQUISADOR CIENTIFICO VI
A153: COORD.CIENCIA,TECN.INSUMOS ESTRAT.SAUDE | B153: INSTITUTO BUTANTAN | C153: INSTITUTO BUTANTAN | D153: AMAURI FERRAZ DA SILVA | E153: OFICIAL ADMINISTRATIVO
A154: COORD.CIENCIA,TECN.INSUMOS ESTRAT.SAUDE | B154: INSTITUTO BUTANTAN | C154: INSTITUTO BUTANTAN | D154: AMERICO DE SOUZA BELIZARIO | E154: OFICIAL OPERACIONAL
A155: COORD.CIENCIA,TECN.INSUMOS ESTRAT.SAUDE | B155: INSTITUTO BUTANTAN | C155: INSTITUTO BUTANTAN | D155: ANA FREIRE | E155: AUX.APOIO PESQ.CIENT.TECNOL.
A156: COORD.CIENCIA,TECN.INSUMOS ESTRAT.SAUDE | B156: INSTITUTO BUTANTAN | C156: INSTITUTO BUTANTAN | D156: ANA HELENA PAGOTTO STUGINSKI | E156: TECN.APOIO PESQ.CIENT.TECNOL.
A157: COORD.CIENCIA,TECN.INSUMOS ESTRAT.SAUDE | B157: INSTITUTO BUTANTAN | C157: INSTITUTO BUTANTAN | D157: ANA LEONOR ABRAHAO N SOARES | E157: PESQUISADOR CIENTIFICO VI
A158: COORD.CIENCIA,TECN.INSUMOS ESTRAT.SAUDE | B158: INSTITUTO BUTANTAN | C158: INSTITUTO BUTANTAN | D158: ANA LUCIA TABET O NASCIMENTO | E158: PESQUISADOR CIENTIFICO VI
A159: COORD.CIENCIA,TECN.INSUMOS ESTRAT.SAUDE | B159: INSTITUTO BUTANTAN | C159: INSTITUTO BUTANTAN | D159: ANA LUIZA PEREIRA S BETTONI | E159: TECNICO DE LABORATORIO
A160: COORD.CIENCIA,TECN.INSUMOS ESTRAT.SAUDE | B160: INSTITUTO BUTANTAN | C160: INSTITUTO BUTANTAN | D160: ANA MARIA BRAGA | E160: OFICIAL AP.PESQ.CIENT.TECNOL.
A161: COORD.CIENCIA,TECN.INSUMOS ESTRAT.SAUDE | B161: INSTITUTO BUTANTAN | C161: INSTITUTO BUTANTAN | D161: ANA MARIA MORO | E161: PESQUISADOR CIENTIFICO VI
A162: COORD.CIENCIA,TECN.INSUMOS ESTRAT.SAUDE | B162: INSTITUTO BUTANTAN | C162: INSTITUTO BUTANTAN | D162: ANA MARIA MOURA DA SILVA | E162: PESQUISADOR CIENTIFICO VI
A163: COORD.CIENCIA,TECN.INSUMOS ESTRAT.SAUDE | B163: INSTITUTO BUTANTAN | C163: INSTITUTO BUTANTAN | D163: ANA MARISA CHUDZINSKI TAVASSI | E163: PESQUISADOR CIENTIFICO VI
A164: COORD.CIENCIA,TECN.INSUMOS ESTRAT.SAUDE | B164: INSTITUTO BUTANTAN | C164: INSTITUTO BUTANTAN | D164: ANA OLIVIA DE SOUZA | E164: PESQUISADOR CIENTIFICO VI
A165: COORD.CIENCIA,TECN.INSUMOS ESTRAT.SAUDE | B165: INSTITUTO BUTANTAN | C165: INSTITUTO BUTANTAN | D165: ANA PAULA DA COSTA SOUSA | E165: AUXILIAR DE SAUDE
A166: COORD.CIENCIA,TECN.INSUMOS ESTRAT.SAUDE | B166: INSTITUTO DE SAUDE | C166: INSTITUTO DE SAUDE | D166: ANABELA RIBEIRO FRAGA SILVA | E166: AUXILIAR SERV.GERAIS
A167: COORD.CIENCIA,TECN.INSUMOS ESTRAT.SAUDE | B167: INSTITUTO BUTANTAN | C167: INSTITUTO BUTANTAN | D167: ANATERCIA FERREIRA BONFIM YANO | E167: DIRETOR TECNICO I
A168: COORD.CIENCIA,TECN.INSUMOS ESTRAT.SAUDE | B168: INSTITUTO BUTANTAN | C168: INSTITUTO BUTANTAN | D168: ANDRE LUIZ SIMOES BORGES | E168: AUXILIAR SERV.GERAIS
A169: COORD.CIENCIA,TECN.INSUMOS ESTRAT.SAUDE | B169: INSTITUTO BUTANTAN | C169: INSTITUTO BUTANTAN | D169: ANDREA BORREGO | E169: PESQUISADOR CIENTIFICO V
A170: COORD.CIENCIA,TECN.INSUMOS ESTRAT.SAUDE | B170: INSTITUTO BUTANTAN | C170: INSTITUTO BUTANTAN | D170: ANDREIA MARTINS GARCIA | E170: AG.APOIO PESQ.CIENT.TECNOL.
A171: COORD.CIENCIA,TECN.INSUMOS ESTRAT.SAUDE | B171: INSTITUTO BUTANTAN | C171: INSTITUTO BUTANTAN | D171: ANGELA SILVA BARBOSA | E171: PESQUISADOR CIENTIFICO VI
A172: COORD.CIENCIA,TECN.INSUMOS ESTRAT.SAUDE | B172: INSTITUTO BUTANTAN | C172: INSTITUTO BUTANTAN | D172: ANITA MITICO TANAKA AZEVEDO | E172: PESQUISADOR CIENTIFICO VI
A173: COORD.CIENCIA,TECN.INSUMOS ESTRAT.SAUDE | B173: INSTITUTO DE SAUDE | C173: INSTITUTO DE SAUDE | D173: ANNA VOLOCHKO | E173: MEDICO III
A174: COORD.CIENCIA,TECN.INSUMOS ESTRAT.SAUDE | B174: INSTITUTO BUTANTAN | C174: INSTITUTO BUTANTAN | D174: ANTONIA GENILSA AMORIM PRADO | E174: AUXILIAR DE ENFERMAGEM
A175: COORD.CIENCIA,TECN.INSUMOS ESTRAT.SAUDE | B175: INSTITUTO BUTANTAN | C175: INSTITUTO BUTANTAN | D175: ANTONIO CARLOS BARBOSA | E175: TECN.APOIO PESQ.CIENT.TECNOL.
A176: COORD.CIENCIA,TECN.INSUMOS ESTRAT.SAUDE | B176: INSTITUTO BUTANTAN | C176: INSTITUTO BUTANTAN | D176: ANTONIO CARLOS LEONARDO | E176: AUXILIAR SERV.GERAIS
A177: COORD.CIENCIA,TECN.INSUMOS ESTRAT.SAUDE | B177: INSTITUTO BUTANTAN | C177: INSTITUTO BUTANTAN | D177: ANTONIO DE OLIVEIRA | E177: AUXILIAR DE LABORATORIO
A178: COORD.CIENCIA,TECN.INSUMOS ESTRAT.SAUDE | B178: INSTITUTO BUTANTAN | C178: INSTITUTO BUTANTAN | D178: ANTONIO DOMINGOS BRESCOVIT | E178: PESQUISADOR CIENTIFICO VI
A179: COORD.CIENCIA,TECN.INSUMOS ESTRAT.SAUDE | B179: INSTITUTO BUTANTAN | C179: INSTITUTO BUTANTAN | D179: ANTONIO G PURIFICACAO | E179: OFICIAL AP.PESQ.CIENT.TECNOL.
A180: COORD.CIENCIA,TECN.INSUMOS ESTRAT.SAUDE | B180: INSTITUTO BUTANTAN | C180: INSTITUTO BUTANTAN | D180: ANTONIO MANOEL M OLIVEIRA | E180: AUXILIAR SERV.GERAIS
A181: COORD.CIENCIA,TECN.INSUMOS ESTRAT.SAUDE | B181: INSTITUTO BUTANTAN | C181: INSTITUTO BUTANTAN | D181: ANTONIO MARTINS FAGUNDES | E181: AUXILIAR SERV.GERAIS
A182: COORD.CIENCIA,TECN.INSUMOS ESTRAT.SAUDE | B182: INSTITUTO BUTANTAN | C182: INSTITUTO BUTANTAN | D182: ANTONIO SOARES | E182: AUXILIAR SERV.GERAIS
A183: COORD.CIENCIA,TECN.INSUMOS ESTRAT.SAUDE | B183: INSTITUTO BUTANTAN | C183: INSTITUTO BUTANTAN | D183: APARECIDA SANTO PIETRO PEREIRA | E183: PESQUISADOR CIENTIFICO III
A184: COORD.CIENCIA,TECN.INSUMOS ESTRAT.SAUDE | B184: INSTITUTO BUTANTAN | C184: INSTITUTO BUTANTAN | D184: ARLETE SANDRA DE JESUS | E184: OFICIAL AP.PESQ.CIENT.TECNOL.
A185: COORD.CIENCIA,TECN.INSUMOS ESTRAT.SAUDE | B185: INSTITUTO BUTANTAN | C185: INSTITUTO BUTANTAN | D185: ARYENE GOES TREZENA | E185: PESQUISADOR CIENTIFICO VI
A186: COORD.CIENCIA,TECN.INSUMOS ESTRAT.SAUDE | B186: INSTITUTO BUTANTAN | C186: INSTITUTO BUTANTAN | D186: ASTROGILDA TAVARES | E186: OFICIAL ADMINISTRATIVO
A187: COORD.CIENCIA,TECN.INSUMOS ESTRAT.SAUDE | B187: INSTITUTO BUTANTAN | C187: INSTITUTO BUTANTAN | D187: AURORA MARQUES CIANCIARULLO | E187: PESQUISADOR CIENTIFICO VI
A188: COORD.CIENCIA,TECN.INSUMOS ESTRAT.SAUDE | B188: INSTITUTO BUTANTAN | C188: INSTITUTO BUTANTAN | D188: BEATRIZ ANAUATI NICOLAO | E188: TECN.APOIO PESQ.CIENT.TECNOL.
A189: COORD.CIENCIA,TECN.INSUMOS ESTRAT.SAUDE | B189: INSTITUTO BUTANTAN | C189: INSTITUTO BUTANTAN | D189: BEATRIZ DE MOURA TSUBOUCHI | E189: AG.APOIO PESQ.CIENT.TECNOL.
A190: COORD.CIENCIA,TECN.INSUMOS ESTRAT.SAUDE | B190: INSTITUTO BUTANTAN | C190: INSTITUTO BUTANTAN | D190: BEATRIZ MAURICIO | E190: AUX.APOIO PESQ.CIENT.TECNOL.
A191: COORD.CIENCIA,TECN.INSUMOS ESTRAT.SAUDE | B191: INSTITUTO BUTANTAN | C191: INSTITUTO BUTANTAN | D191: BENEDITO CARLOS PREZOTO | E191: PESQUISADOR CIENTIFICO V
A192: COORD.CIENCIA,TECN.INSUMOS ESTRAT.SAUDE | B192: INSTITUTO BUTANTAN | C192: INSTITUTO BUTANTAN | D192: BENEDITO PEREIRA | E192: AG.APOIO PESQ.CIENT.TECNOL.
A193: COORD.CIENCIA,TECN.INSUMOS ESTRAT.SAUDE | B193: INSTITUTO BUTANTAN | C193: INSTITUTO BUTANTAN | D193: BRUNO MARTINS DA COSTA BATISTA | E193: AG.APOIO PESQ.CIENT.TECNOL.
A194: COORD.CIENCIA,TECN.INSUMOS ESTRAT.SAUDE | B194: INSTITUTO BUTANTAN | C194: INSTITUTO BUTANTAN | D194: CAIO CESAR IRINEU | E194: OFICIAL AP.PESQ.CIENT.TECNOL.
A195: COORD.CIENCIA,TECN.INSUMOS ESTRAT.SAUDE | B195: INSTITUTO BUTANTAN | C195: INSTITUTO BUTANTAN | D195: CAMILA BUENO PACHECO PEREIRA | E195: AG.APOIO PESQ.CIENT.TECNOL.
A196: COORD.CIENCIA,TECN.INSUMOS ESTRAT.SAUDE | B196: INSTITUTO BUTANTAN | C196: INSTITUTO BUTANTAN | D196: CAMILA MARIA LUCIA DA SILVA | E196: TECN.APOIO PESQ.CIENT.TECNOL.
A197: COORD.CIENCIA,TECN.INSUMOS ESTRAT.SAUDE | B197: INSTITUTO BUTANTAN | C197: INSTITUTO BUTANTAN | D197: CAMILLA NASCIMENTO ROCHA ZAGO | E197: TECN.APOIO PESQ.CIENT.TECNOL.
A198: COORD.CIENCIA,TECN.INSUMOS ESTRAT.SAUDE | B198: INSTITUTO BUTANTAN | C198: INSTITUTO BUTANTAN | D198: CARLA CRISTINA S BAPTISTAO | E198: PESQUISADOR CIENTIFICO V
A199: COORD.CIENCIA,TECN.INSUMOS ESTRAT.SAUDE | B199: INSTITUTO BUTANTAN | C199: INSTITUTO BUTANTAN | D199: CARLA LILIAN AGOSTINI UTESCHER | E199: PESQUISADOR CIENTIFICO III
A200: COORD.CIENCIA,TECN.INSUMOS ESTRAT.SAUDE | B200: INSTITUTO BUTANTAN | C200: INSTITUTO BUTANTAN | D200: CARLA LIMA DA SILVA | E200: PESQUISADOR CIENTIFICO VI
A201: COORD.CIENCIA,TECN.INSUMOS ESTRAT.SAUDE | B201: INSTITUTO BUTANTAN | C201: INSTITUTO BUTANTAN | D201: CARLA PLOEGER MANSUELI | E201: AG.APOIO PESQ.CIENT.TECNOL.
A202: COORD.CIENCIA,TECN.INSUMOS ESTRAT.SAUDE | B202: INSTITUTO BUTANTAN | C202: INSTITUTO BUTANTAN | D202: CARLOS ALBERTO BRANDT | E202: PESQUISADOR CIENTIFICO V
A203: COORD.CIENCIA,TECN.INSUMOS ESTRAT.SAUDE | B203: INSTITUTO BUTANTAN | C203: INSTITUTO BUTANTAN | D203: CARLOS ALBERTO DOS SANTOS PENA | E203: TECN.APOIO PESQ.CIENT.TECNOL.
A204: COORD.CIENCIA,TECN.INSUMOS ESTRAT.SAUDE | B204: INSTITUTO BUTANTAN | C204: INSTITUTO BUTANTAN | D204: CARLOS ALBERTO G S JARED | E204: PESQUISADOR CIENTIFICO VI
A205: COORD.CIENCIA,TECN.INSUMOS ESTRAT.SAUDE | B205: INSTITUTO BUTANTAN | C205: INSTITUTO BUTANTAN | D205: CARLOS ALBERTO SANTANA SILVA | E205: AG.APOIO PESQ.CIENT.TECNOL.
A206: COORD.CIENCIA,TECN.INSUMOS ESTRAT.SAUDE | B206: INSTITUTO BUTANTAN | C206: INSTITUTO BUTANTAN | D206: CARLOS ALBERTO TOBIAS | E206: ENCARREGADO I
... 4294 more rows
